Workbook

Sheet 算法关系表
H1: 人设——行为算法 | M1: 行为——功能模块算法
A3: 人群占比 | B3: 序号ID | C3: 项目 | D3: 年/月/日 | E3: 年龄 | F3: 城市 | G3: 生命周期 | H3: 人群分类 | I3: 数据项-行为兴趣 | J3: 原始数值 | K3: 标准化值 | M3: 关联模块1 | N3: 权重值 | O3: 标准化值 | P3: 关联模块2 | Q3: 权重值 | R3: 标准化值 | S3: 关联模块3 | T3: 权重值 | U3: 标准化值 | V3: 关联模块4 | W3: 权重值 | X3: 标准化值 | Y3: 关联模块5 | Z3: 权重值 | AA3: 标准化值
A4: 16 | B4: 1 | C4: WIII | D4: 2019 | E4: 85后 | F4: 上海 | G4: 一代居 | H4: A | I4: 养猫 | K4: 0.1666666667 | M4: 宠物模块 | N4: 1
B5: 2 | C5: WIII | D5: 2019 | E5: 85后 | F5: 上海 | G5: 一代居 | H5: A | I5: 看影视 | K5: 0.1333333333 | M5: 影音模块 | N5: 1 | P5: 休闲模块 | Q5: 0.5
B6: 3 | C6: WIII | D6: 2019 | E6: 85后 | F6: 上海 | G6: 一代居 | H6: A | I6: 阅读 | K6: 0.12 | M6: 工作学习模块 | N6: 1 | P6: 收纳模块 | Q6: 0.5 | S6: 休闲模块 | T6: 0.5
B7: 4 | C7: WIII | D7: 2019 | E7: 85后 | F7: 上海 | G7: 一代居 | H7: A | I7: 喝咖啡 | K7: 0.1066666667 | M7: 酒水茶模块 | N7: 1
B8: 5 | C8: WIII | D8: 2019 | E8: 85后 | F8: 上海 | G8: 一代居 | H8: A | I8: 小憩 | K8: 0.1 | M8: 休闲模块 | N8: 1 | P8: 睡眠模块 | Q8: 0.5
B9: 6 | C9: WIII | D9: 2019 | E9: 85后 | F9: 上海 | G9: 一代居 | H9: A | I9: 玩电脑游戏 | K9: 0.09333333333 | M9: 影音模块 | N9: 1 | P9: 休闲模块 | Q9: 0.5
B10: 7 | C10: WIII | D10: 2019 | E10: 85后 | F10: 上海 | G10: 一代居 | H10: A | I10: 平板塑形 | K10: 0.08666666667 | M10: 健身模块 | N10: 1 | P10: 影音模块 | Q10: 0.5 | S10: 休闲模块 | T10: 0.5 | V10: 洗浴模块 | W10: 0.5 | Y10: 更衣模块 | Z10: 0.5
B11: 8 | C11: WIII | D11: 2019 | E11: 85后 | F11: 上海 | G11: 一代居 | H11: A | I11: 插花 | K11: 0.08 | M11: 手工模块 | N11: 1 | P11: 收纳模块 | Q11: 0.5 | S11: 展示模块 | T11: 0.5
B12: 9 | C12: WIII | D12: 2019 | E12: 85后 | F12: 上海 | G12: 一代居 | H12: A | I12: 工作学习 | K12: 0.05333333333 | M12: 工作学习模块 | N12: 1 | P12: 收纳模块 | Q12: 0.5 | S12: 休闲模块 | T12: 0.5
B13: 10 | C13: WIII | D13: 2019 | E13: 85后 | F13: 上海 | G13: 一代居 | H13: A | I13: 打扫清洁 | K13: 0.06 | M13: 家政模块 | N13: 1 | P13: 收纳模块 | Q13: 0.5
A14: 0.13 | B14: 11 | C14: WIII | D14: 2019 | E14: 85后 | F14: 上海 | G14: 一代居 | H14: B | I14: 玩电脑游戏 | K14: 0.1666666667 | M14: 影音模块 | N14: 1 | P14: 休闲模块 | Q14: 0.5
B15: 12 | C15: WIII | D15: 2019 | E15: 85后 | F15: 上海 | G15: 一代居 | H15: B | I15: 工作学习 | K15: 0.1333333333 | M15: 工作学习模块 | N15: 1
B16: 13 | C16: WIII | D16: 2019 | E16: 85后 | F16: 上海 | G16: 一代居 | H16: B | I16: 看影视 | K16: 0.1533333333 | M16: 影音模块 | N16: 1 | P16: 休闲模块 | Q16: 0.5
B17: 14 | C17: WIII | D17: 2019 | E17: 85后 | F17: 上海 | G17: 一代居 | H17: B | I17: 喝咖啡 | K17: 0.08666666667 | M17: 酒水茶模块 | N17: 1
B18: 15 | C18: WIII | D18: 2019 | E18: 85后 | F18: 上海 | G18: 一代居 | H18: B | I18: 聚会 | K18: 0.1 | M18: 休闲模块 | N18: 1 | P18: 餐食模块 | Q18: 0.5 | S18: 烹饪模块 | T18: 0.5 | V18: 酒水茶模块 | W18: 0.5 | Y18: 影音模块 | Z18: 0.5
B19: 16 | C19: WIII | D19: 2019 | E19: 85后 | F19: 上海 | G19: 一代居 | H19: B | I19: 直播 | K19: 0.12 | M19: 影音模块 | N19: 1
B20: 17 | C20: WIII | D20: 2019 | E20: 85后 | F20: 上海 | G20: 一代居 | H20: B | I20: 收藏 | K20: 0.03333333333 | M20: 展示模块 | N20: 1 | P20: 收纳模块 | Q20: 0.5
B21: 18 | C21: WIII | D21: 2019 | E21: 85后 | F21: 上海 | G21: 一代居 | H21: B | I21: 收纳 | K21: 0.1066666667 | M21: 收纳模块 | N21: 1
B22: 19 | C22: WIII | D22: 2019 | E22: 85后 | F22: 上海 | G22: 一代居 | H22: B | I22: 做模型 | K22: 0.02 | M22: 手工模块 | N22: 1 | P22: 收纳模块 | Q22: 0.5 | S22: 展示模块 | T22: 0.5
B23: 20 | C23: WIII | D23: 2019 | E23: 85后 | F23: 上海 | G23: 一代居 | H23: B | I23: 小憩 | K23: 0.08 | M23: 休闲模块 | N23: 1 | P23: 睡眠模块 | Q23: 0.5
A24: 0.17 | B24: 21 | C24: WIII | D24: 2019 | E24: 85后 | F24: 上海 | G24: 一代居 | H24: C | I24: 平板塑形 | K24: 0.1420454545 | M24: 健身模块 | N24: 1 | P24: 影音模块 | Q24: 0.5 | S24: 休闲模块 | T24: 0.5 | V24: 洗浴模块 | W24: 0.5 | Y24: 更衣模块 | Z24: 0.5
B25: 22 | C25: WIII | D25: 2019 | E25: 85后 | F25: 上海 | G25: 一代居 | H25: C | I25: 大器械健身 | K25: 0.1136363636 | M25: 健身模块 | N25: 1 | P25: 影音模块 | Q25: 0.5 | S25: 休闲模块 | T25: 0.5 | V25: 洗浴模块 | W25: 0.5 | Y25: 更衣模块 | Z25: 0.5
B26: 23 | C26: WIII | D26: 2019 | E26: 85后 | F26: 上海 | G26: 一代居 | H26: C | I26: 跑步 | K26: 0.125 | M26: 运动模块 | N26: 1 | P26: 洗浴模块 | Q26: 0.5 | S26: 更衣模块 | T26: 0.5
B27: 24 | C27: WIII | D27: 2019 | E27: 85后 | F27: 上海 | G27: 一代居 | H27: C | I27: 打篮球 | K27: 0.04545454545 | M27: 运动模块 | N27: 1 | P27: 洗浴模块 | Q27: 0.5 | S27: 更衣模块 | T27: 0.5
B28: 25 | C28: WIII | D28: 2019 | E28: 85后 | F28: 上海 | G28: 一代居 | H28: C | I28: 游泳 | K28: 0.1022727273 | M28: 运动模块 | N28: 1 | P28: 洗浴模块 | Q28: 0.5 | S28: 更衣模块 | T28: 0.5
B29: 26 | C29: WIII | D29: 2019 | E29: 85后 | F29: 上海 | G29: 一代居 | H29: C | I29: 淋浴 | K29: 0.1306818182 | M29: 洗浴模块 | N29: 1
B30: 27 | C30: WIII | D30: 2019 | E30: 85后 | F30: 上海 | G30: 一代居 | H30: C | I30: 做西餐 | K30: 0.1079545455 | M30: 烹饪模块 | N30: 1
B31: 28 | C31: WIII | D31: 2019 | E31: 85后 | F31: 上海 | G31: 一代居 | H31: C | I31: 就餐 | K31: 0.05681818182 | M31: 餐食模块 | N31: 1 | P31: 休闲模块 | Q31: 0.5
B32: 29 | C32: WIII | D32: 2019 | E32: 85后 | F32: 上海 | G32: 一代居 | H32: C | I32: 仪容仪表 | K32: 0.1022727273 | M32: 更衣模块 | N32: 1 | P32: 收纳模块 | Q32: 0.5 | S32: 洗漱模块 | T32: 0.5
B33: 30 | C33: WIII | D33: 2019 | E33: 85后 | F33: 上海 | G33: 一代居 | H33: C | I33: 睡觉 | K33: 0.07386363636 | M33: 睡眠模块 | N33: 1
A34: 0.18 | B34: 31 | C34: WIII | D34: 2019 | E34: 85后 | F34: 上海 | G34: 一代居 | H34: D | I34: 仪容仪表 | K34: 0.1420454545 | M34: 更衣模块 | N34: 1 | P34: 收纳模块 | Q34: 0.5 | S34: 洗漱模块 | T34: 0.5
B35: 32 | C35: WIII | D35: 2019 | E35: 85后 | F35: 上海 | G35: 一代居 | H35: D | I35: 美妆 | K35: 0.1136363636 | M35: 收纳模块 | N35: 1 | P35: 更衣模块 | Q35: 0.5 | S35: 洗漱模块 | T35: 0.5
B36: 33 | C36: WIII | D36: 2019 | E36: 85后 | F36: 上海 | G36: 一代居 | H36: D | I36: 收纳 | K36: 0.125 | M36: 收纳模块 | N36: 1
B37: 34 | C37: WIII | D37: 2019 | E37: 85后 | F37: 上海 | G37: 一代居 | H37: D | I37: 直播 | K37: 0.04545454545 | M37: 影音模块 | N37: 1
B38: 35 | C38: WIII | D38: 2019 | E38: 85后 | F38: 上海 | G38: 一代居 | H38: D | I38: 洗漱 | K38: 0.1022727273 | M38: 洗漱模块 | N38: 1
B39: 36 | C39: WIII | D39: 2019 | E39: 85后 | F39: 上海 | G39: 一代居 | H39: D | I39: 美容护肤 | K39: 0.1306818182 | M39: 收纳模块 | N39: 1 | P39: 洗漱模块 | Q39: 0.5
B40: 37 | C40: WIII | D40: 2019 | E40: 85后 | F40: 上海 | G40: 一代居 | H40: D | I40: 泡澡 | K40: 0.1079545455 | M40: 洗浴模块 | N40: 1
B41: 38 | C41: WIII | D41: 2019 | E41: 85后 | F41: 上海 | G41: 一代居 | H41: D | I41: 平板塑形 | K41: 0.05681818182 | M41: 健身模块 | N41: 1 | P41: 影音模块 | Q41: 0.5 | S41: 休闲模块 | T41: 0.5 | V41: 洗浴模块 | W41: 0.5 | Y41: 更衣模块 | Z41: 0.5
B42: 39 | C42: WIII | D42: 2019 | E42: 85后 | F42: 上海 | G42: 一代居 | H42: D | I42: 睡觉 | K42: 0.1022727273 | M42: 睡眠模块 | N42: 1
B43: 40 | C43: WIII | D43: 2019 | E43: 85后 | F43: 上海 | G43: 一代居 | H43: D | I43: 跑步 | K43: 0.07386363636 | M43: 运动模块 | N43: 1 | P43: 洗浴模块 | Q43: 0.5 | S43: 更衣模块 | T43: 0.5
A44: 0.2 | B44: 41 | C44: WIII | D44: 2019 | E44: 85后 | F44: 上海 | G44: 一代居 | H44: E | I44: 睡眠 | K44: 0.1420454545 | M44: 睡眠模块 | N44: 1
B45: 42 | C45: WIII | D45: 2019 | E45: 85后 | F45: 上海 | G45: 一代居 | H45: E | I45: 看影视 | K45: 0.1136363636 | M45: 影音模块 | N45: 1 | P45: 休闲模块 | Q45: 0.5
B46: 43 | C46: WIII | D46: 2019 | E46: 85后 | F46: 上海 | G46: 一代居 | H46: E | I46: 玩电脑游戏 | K46: 0.125 | M46: 影音模块 | N46: 1 | P46: 休闲模块 | Q46: 0.5
B47: 44 | C47: WIII | D47: 2019 | E47: 85后 | F47: 上海 | G47: 一代居 | H47: E | I47: 阅读 | K47: 0.04545454545 | M47: 工作学习模块 | N47: 1 | P47: 收纳模块 | Q47: 0.5 | S47: 休闲模块 | T47: 0.5
B48: 45 | C48: WIII | D48: 2019 | E48: 85后 | F48: 上海 | G48: 一代居 | H48: E | I48: 就餐 | K48: 0.1022727273 | M48: 餐食模块 | N48: 1 | P48: 休闲模块 | Q48: 0.5
B49: 46 | C49: WIII | D49: 2019 | E49: 85后 | F49: 上海 | G49: 一代居 | H49: E | I49: 养猫 | K49: 0.1306818182 | M49: 宠物模块 | N49: 1
B50: 47 | C50: WIII | D50: 2019 | E50: 85后 | F50: 上海 | G50: 一代居 | H50: E | I50: 泡澡 | K50: 0.1079545455 | M50: 洗浴模块 | N50: 1
B51: 48 | C51: WIII | D51: 2019 | E51: 85后 | F51: 上海 | G51: 一代居 | H51: E | I51: 小憩 | K51: 0.05681818182 | M51: 休闲模块 | N51: 1 | P51: 睡眠模块 | Q51: 0.5
B52: 49 | C52: WIII | D52: 2019 | E52: 85后 | F52: 上海 | G52: 一代居 | H52: E | I52: 追星 | K52: 0.1022727273 | M52: 影音模块 | N52: 1 | P52: 收纳模块 | Q52: 0.5 | S52: 展示模块 | T52: 0.5
B53: 50 | C53: WIII | D53: 2019 | E53: 85后 | F53: 上海 | G53: 一代居 | H53: E | I53: 种花 | K53: 0.07386363636 | M53: 园艺模块 | N53: 1 | P53: 展示模块 | Q53: 0.5
A54: 0.16 | B54: 51 | C54: WIII | D54: 2019 | E54: 85后 | F54: 上海 | G54: 一代居 | H54: F | I54: 工作学习 | K54: 0.1533742331 | M54: 工作学习模块 | N54: 1
B55: 52 | C55: WIII | D55: 2019 | E55: 85后 | F55: 上海 | G55: 一代居 | H55: F | I55: 仪容仪表 | K55: 0.1226993865 | M55: 更衣模块 | N55: 1 | P55: 收纳模块 | Q55: 0.5 | S55: 洗漱模块 | T55: 0.5
B56: 53 | C56: WIII | D56: 2019 | E56: 85后 | F56: 上海 | G56: 一代居 | H56: F | I56: 微聚会 | K56: 0.1349693252 | M56: 休闲模块 | N56: 1 | P56: 餐食模块 | Q56: 0.5 | S56: 烹饪模块 | T56: 0.5 | V56: 酒水茶模块 | W56: 0.5 | Y56: 影音模块 | Z56: 0.5
B57: 54 | C57: WIII | D57: 2019 | E57: 85后 | F57: 上海 | G57: 一代居 | H57: F | I57: 喝咖啡 | K57: 0.0490797546 | M57: 酒水茶模块 | N57: 1
B58: 55 | C58: WIII | D58: 2019 | E58: 85后 | F58: 上海 | G58: 一代居 | H58: F | I58: 看影视 | K58: 0.1104294479 | M58: 影音模块 | N58: 1 | P58: 休闲模块 | Q58: 0.5
B59: 56 | C59: WIII | D59: 2019 | E59: 85后 | F59: 上海 | G59: 一代居 | H59: F | I59: 跑步 | K59: 0.1411042945 | M59: 运动模块 | N59: 1 | P59: 洗浴模块 | Q59: 0.5 | S59: 更衣模块 | T59: 0.5
B60: 57 | C60: WIII | D60: 2019 | E60: 85后 | F60: 上海 | G60: 一代居 | H60: F | I60: 洗干熨衣 | K60: 0.1165644172 | M60: 家政模块 | N60: 1 | P60: 收纳模块 | Q60: 0.5
B61: 58 | C61: WIII | D61: 2019 | E61: 85后 | F61: 上海 | G61: 一代居 | H61: F | I61: 就餐 | K61: 0.06134969325 | M61: 餐食模块 | N61: 1 | P61: 休闲模块 | Q61: 0.5
B62: 59 | C62: WIII | D62: 2019 | E62: 85后 | F62: 上海 | G62: 一代居 | H62: F | I62: 养猫 | K62: 0.1104294479 | M62: 宠物模块 | N62: 1

Sheet 上海+85后_修改 (hidden)
A1: 上海 | B1: 85后
B2: 人设——行为算法 | I2: 行为——功能模块算法 | T2: 模块——模块关系算法 | AJ2: 公区模块算法
B3: 人设标签 | C3: 行为标签 | D3: 权重 | E3: 频次 | F3: 总分 | G3: 标准值 | I3: 主要模块 | J3: 次要模块 | O3: 排名 | P3: 模块标签 | Q3: 总分 | R3: 模块类型 | U3: 模块-模块关联 | V3: 休闲模块 | W3: 影音模块 | X3: 工作学习模块 | Y3: 宠物模块 | Z3: 收纳模块 | AA3: 睡眠模块 | AB3: 洗浴模块 | AC3: 家政模块 | AD3: 洗漱模块 | AM3: 原值 | AN3: 加权后的值 | AO3: 公区模块 | AP3: 总分 | AQ3: 排名 | AR3: 调取 6 个3d模型
A4: 0.16 | B4: 铲屎官 （A类） | C4: 养猫 | D4: 5 | E4: =F4/D4 -> 5 | F4: 25 | G4: 0.1666666667 | I4: 宠物模块 | O4: B | P4: 休闲模块 | Q4: =J7+K9+I13+J15+K21 -> 0.3 | R4: 直接模块 | T4: 直接模块 | U4: 休闲模块 | AJ4: 铲屎官 （A类） | AK4: =A4 -> 0.16 | AL4: 休闲模块 | AM4: =Q4 -> 0.3 | AN4: =$AK$4*AM4 -> 0.048 | AO4: 影音模块 | AP4: =AN5+AN13+AN28+AN39+AN43+AN55 -> 0.2216431512 | AQ4: 1 | AR4: (调取3d模型)
I5: =G4 -> 0.1666666667 | O5: C | P5: 影音模块 | Q5: =I7+I15 -> 0.2266666667 | U5: 影音模块 | V5: 4 | AL5: 影音模块 | AM5: 0.2266666667 | AN5: =$AK$4*AM5 -> 0.03626666667 | AO5: 休闲模块 | AP5: =AN4+AN14+AN27+AN42+AN44+AN53 -> 0.2055446198 | AQ5: 2 | AR5: (调取3d模型)
C6: 看影视 | D6: 4 | E6: =F6/D6 -> 5 | F6: 20 | G6: 0.1333333333 | I6: 影音模块 | J6: 休闲模块 | O6: D | P6: 工作学习模块 | Q6: =I9+I21 -> 0.1733333333 | U6: 工作学习模块 | V6: 4 | W6: 4 | AL6: 工作学习模块 | AM6: 0.1733333333 | AN6: =$AK$4*AM6 -> 0.02773333333 | AO6: 收纳模块 | AP6: =AN8+AN17+AN32+AN34+AN48+AN58 -> 0.1610600436 | AQ6: 3 | AR6: (调取3d模型)
I7: =G6 -> 0.1333333333 | J7: =I7/2 -> 0.06666666667 | O7: A | P7: 宠物模块 | Q7: =I5 -> 0.1666666667 | R7: 核心模块 | T7: 核心模块 | U7: 宠物模块 | V7: 5 | W7: 5 | X7: 5 | AL7: 宠物模块 | AM7: 0.1666666667 | AN7: =$AK$4*AM7 -> 0.02666666667 | AO7: 洗浴模块 | AP7: =AN10+AN23+AN37+AN49+AN63 -> 0.1497864494 | AQ7: 4 | AR7: (公区没有此模块，跳过)
C8: 阅读 | D8: 4 | E8: =F8/D8 -> 4.5 | F8: 18 | G8: 0.12 | I8: 工作学习模块 | J8: 收纳模块 | K8: 休闲模块 | O8: E | P8: 收纳模块 | Q8: =J9+J21+J23 -> 0.1316666667 | R8: 间接模块 | T8: 间接模块 | U8: 收纳模块 | V8: 2 | X8: 3 | Y8: 3 | AL8: 收纳模块 | AM8: 0.1316666667 | AN8: =$AK$4*AM8 -> 0.02106666667 | AO8: 更衣模块 | AP8: =AN24+AN36+AN54 -> 0.1405850179 | AR8: (公区没有此模块)
I9: =G8 -> 0.12 | J9: 0.06 | K9: 0.06 | O9: F | P9: 睡眠模块 | Q9: =J13+I19 -> 0.13 | U9: 睡眠模块 | V9: 3 | Y9: 3 | AL9: 睡眠模块 | AM9: 0.13 | AN9: =$AK$4*AM9 -> 0.0208 | AO9: 运动模块 | AP9: =AN25+AN40+AN57 -> 0.08262214159 | AQ9: 5 | AR9: (调取3d模型)
C10: 淋浴 | D10: 4.5 | E10: =F10/D10 -> 3.555555556 | F10: 16 | G10: 0.1066666667 | I10: 洗浴模块 | O10: G | P10: 洗浴模块 | Q10: =I11 -> 0.1066666667 | U10: 洗浴模块 | Y10: 3 | AL10: 洗浴模块 | AM10: 0.1066666667 | AN10: =$AK$4*AM10 -> 0.01706666667 | AO10: 工作学习模块 | AP10: =AN6+AN16+AN52+AN56 -> 0.07930351355 | AQ10: 6 | AR10: (调取3d模型)
I11: =G10 -> 0.1066666667 | O11: H | P11: 家政模块 | Q11: =I23 -> 0.09 | U11: 家政模块 | Y11: 3 | Z11: 3 | AL11: 家政模块 | AM11: 0.09 | AN11: =$AK$4*AM11 -> 0.0144 | AO11: 洗漱模块 | AP11: =AN12+AN33+AN35+AN65 -> 0.0759841327 | AR11: (公区没有此模块)
C12: 小憩 | D12: 3 | E12: =F12/D12 -> 5 | F12: 15 | G12: 0.1 | I12: 休闲模块 | J12: 睡眠模块 | P12: 洗漱模块 | Q12: =I17 -> 0.06 | R12: 只要A到H 多余去掉 | T12: + 必要 | U12: 洗漱模块 | Y12: 1 | AL12: 洗漱模块 | AM12: 0.06 | AN12: =$AK$4*AM12 -> 0.0096 | AO12: 睡眠模块 | AP12: =AN9+AN21+AN30+AN38 -> 0.05630909091 | AR12: (公区没有此模块)
I13: =G12 -> 0.1 | J13: =I13/2 -> 0.05 | P13: A-H 总分合计 | Q13: =SUM(Q4:Q11) -> 1.325 | AJ13: 游戏咖 （B类） | AK13: 0.13 | AL13: 影音模块 | AM13: =Q25 -> 0.49 | AN13: =AM13*$AK$13 -> 0.0637 | AO13: 宠物模块 | AP13: =AN7+AN46+AN61 -> 0.06251719619
C14: 玩电脑游戏 | D14: 3 | E14: =F14/D14 -> 4.666666667 | F14: 14 | G14: 0.09333333333 | I14: 影音模块 | J14: 休闲模块 | AL14: 休闲模块 | AM14: 0.34 | AN14: 0.0442 | AO14: 餐食模块 | AP14: =AN18+AN31+AN50+AN59 -> 0.05913167868 | AR14: (公区没有此模块)
I15: =G14 -> 0.09333333333 | J15: =I15/2 -> 0.04666666667 | T15: 模块-模块关联性格式化标准 | V15: 引力 | W15: 必要的增加只影响“人工原型设计”，俊柯3D不需要考虑，“自动组合”只需要A-H个模块信息： 1）排名 2）模块标签 3）模块类型（核心/直接/间接） | AL15: 酒水茶模块 | AM15: 0.1366666667 | AN15: 0.01776666667 | AO15: 健身模块 | AP15: =AN26+AN41 -> 0.05369318162
C16: 洗漱 | D16: 4 | E16: =F16/D16 -> 3.25 | F16: 13 | G16: 0.06 | I16: 洗漱模块 | T16: 核心模块 | U16: 直接模块 | V16: 5 | AL16: 工作学习模块 | AM16: 0.1333333333 | AN16: 0.01733333333 | AO16: 酒水茶模块 | AP16: =AN15+AN62 -> 0.03641697331
I17: =G16 -> 0.06 | T17: 核心模块 | U17: 间接模块(H前) | V17: 3 | AL17: 收纳模块 | AM17: 0.1333333333 | AN17: 0.01733333333 | AO17: 烹饪模块 | AP17: =AN19+AN29+AN64 -> 0.035997546
C18: 睡觉 | D18: 3 | E18: =F18/D18 -> 4 | F18: 12 | G18: 0.08 | I18: 睡眠模块 | T18: 直接模块 | U18: 直接模块 | V18: 4 | AL18: 餐食模块 | AM18: 0.05 | AN18: 0.0065 | AO18: 展示模块 | AP18: =AN20+AN47 -> 0.02987575753 | AR18: (公区没有此模块)
I19: =G18 -> 0.08 | T19: 主要模块 | U19: 次要模块 | V19: 3 | AL19: 烹饪模块 | AM19: 0.05 | AN19: 0.0065 | AO19: 家政模块 | AP19: =AN11+AN60 -> 0.03305030672
C20: 工作学习 | D20: 3 | E20: =F20/D20 -> 2.666666667 | F20: 8 | G20: 0.05333333333 | I20: 工作学习模块 | J20: 收纳模块 | K20: 休闲模块 | T20: 次要模块 | U20: 次要模块 | V20: 2 | AL20: 展示模块 | AM20: 0.04333333333 | AN20: 0.005633333333 | AO20: 园艺模块 | AP20: =AN51 -> 0.0266666666
I21: =G20 -> 0.05333333333 | J21: =I21/2 -> 0.02666666667 | K21: =J21 -> 0.02666666667 | T21: + 必要 | U21: 核心模块 | V21: 1 | AL21: 睡眠模块 | AM21: 0.04 | AN21: 0.0052 | AO21: 手工模块 | AP21: =AN22 -> 0.0026 | AR21: (公区没有此模块)
C22: 打扫清洁 | D22: 3 | E22: =F22/D22 -> 3 | F22: 9 | G22: 0.09 | I22: 家政模块 | J22: 收纳模块 | AL22: 手工模块 | AM22: 0.02 | AN22: 0.0026
I23: =G22 -> 0.09 | J23: =I23/2 -> 0.045 | AJ23: 健身达人 （C类） | AK23: 0.17 | AL23: 洗浴模块 | AM23: =Q46 -> 0.3953409085 | AN23: =$AK$23*AM23 -> 0.06720795444
AL24: 更衣模块 | AM24: 0.3653409085 | AN24: 0.06210795445
A25: 0.13 | B25: 游戏咖 （B类） | C25: 玩电脑游戏 | D25: 5 | E25: =F25/D25 -> 5 | F25: 25 | G25: 0.1666666667 | I25: 影音模块 | J25: 休闲模块 | O25: A | P25: 影音模块 | Q25: =I26+I30+M34+I36 -> 0.49 | R25: 核心模块 | U25: 模块-模块关联 | V25: 影音模块 | W25: 休闲模块 | X25: 酒水茶模块 | Y25: 工作学习模块 | Z25: 收纳模块 | AA25: 餐食模块 | AB25: 烹饪模块 | AC25: 展示模块 | AD25: 睡眠模块 | AE25: 洗漱模块 | AF25: 洗浴模块 | AL25: 运动模块 | AM25: 0.275 | AN25: 0.04675
I26: =G25 -> 0.1666666667 | J26: =I26/2 -> 0.08333333333 | O26: B | P26: 休闲模块 | Q26: =J26+J30+I34+I44 -> 0.34 | R26: 直接模块 | T26: 核心模块 | U26: 影音模块 | AL26: 健身模块 | AM26: 0.255681817 | AN26: 0.04346590889
C27: 工作学习 | D27: 4 | E27: =F27/D27 -> 5 | F27: 20 | G27: 0.1333333333 | I27: 工作学习模块 | O27: C | P27: 酒水茶模块 | Q27: =I32+L34 -> 0.1366666667 | T27: 直接模块 | U27: 休闲模块 | V27: 5 | AL27: 休闲模块 | AM27: 0.1578409085 | AN27: 0.02683295445
I28: =G27 -> 0.1333333333 | O28: D | P28: 工作学习模块 | Q28: =I28 -> 0.1333333333 | U28: 酒水茶模块 | V28: 5 | W28: 4 | AL28: 影音模块 | AM28: 0.1278409085 | AN28: 0.02173295445
C29: 看影视 | D29: 4 | E29: =F29/D29 -> 5.75 | F29: 23 | G29: 0.1533333333 | I29: 影音模块 | J29: 休闲模块 | O29: E | P29: 收纳模块 | Q29: =J38+I40+J42 -> 0.1333333333 | R29: 间接模块 | U29: 工作学习模块 | V29: 5 | W29: 4 | X29: 4 | AL29: 烹饪模块 | AM29: 0.11 | AN29: 0.0187
I30: =G29 -> 0.1533333333 | J30: =I30/2 -> 0.07666666667 | O30: F | P30: 餐食模块 | Q30: =J34 -> 0.05 | T30: 间接模块 | U30: 收纳模块 | V30: 3 | AL30: 睡眠模块 | AM30: 0.07 | AN30: 0.0119
C31: 喝咖啡 | D31: 3 | E31: =F31/D31 -> 4.333333333 | F31: 13 | G31: 0.08666666667 | I31: 酒水茶模块 | O31: G | P31: 烹饪模块 | Q31: =K34 -> 0.05 | U31: 餐食模块 | V31: 3 | W31: 3 | X31: 2 | AL31: 餐食模块 | AM31: 0.06 | AN31: 0.0102
I32: =G31 -> 0.08666666667 | O32: H | P32: 展示模块 | Q32: =I38+K42 -> 0.04333333333 | U32: 烹饪模块 | V32: 3 | W32: 3 | X32: 2 | AA32: 2 | AL32: 收纳模块 | AM32: 0.05 | AN32: 0.0085
C33: 聚会 | D33: 4.5 | E33: =F33/D33 -> 3.333333333 | F33: 15 | G33: 0.1 | I33: 休闲模块 | J33: 餐食模块 | K33: 烹饪模块 | L33: 酒水茶模块 | M33: 影音模块 | P33: 睡眠模块 | Q33: =J44 -> 0.04 | R33: 只要A到H 多余去掉 | U33: 展示模块 | V33: 3 | Z33: 3 | AL33: 洗漱模块 | AM33: 0.05 | AN33: 0.0085
I34: =G33 -> 0.1 | J34: =I34/2 -> 0.05 | K34: =J34 -> 0.05 | L34: =K34 -> 0.05 | M34: =L34 -> 0.05 | P34: 手工模块 | Q34: =I42 -> 0.02 | T34: + 必要 | U34: 睡眠模块 | V34: 1 | AJ34: 美妆达人 （D类） | AK34: 0.18 | AL34: 收纳模块 | AM34: =Q67 -> 0.4403409091 | AN34: =$AK$34*AM34 -> 0.07926136364
C35: 直播 | D35: 4 | E35: =F35/D35 -> 4.5 | F35: 18 | G35: 0.12 | I35: 影音模块 | P35: A-H 总分合计 | Q35: =SUM(Q25:Q32) -> 1.376666667 | U35: 洗漱模块 | V35: 1 | AL35: 洗漱模块 | AM35: 0.2670454545 | AN35: 0.04806818182
I36: =G35 -> 0.12 | U36: 洗浴模块 | V36: 1 | AL36: 更衣模块 | AM36: 0.2642045455 | AN36: 0.04755681818
C37: 收藏 | D37: 2 | E37: =F37/D37 -> 2.5 | F37: 5 | G37: 0.03333333333 | I37: 展示模块 | J37: 收纳模块 | AL37: 洗浴模块 | AM37: 0.1732954545 | AN37: 0.03119318182
I38: =G37 -> 0.03333333333 | J38: =I38/2 -> 0.01666666667 | AL38: 睡眠模块 | AM38: 0.1022727273 | AN38: 0.01840909091
C39: 收纳 | D39: 4 | E39: =F39/D39 -> 4 | F39: 16 | G39: 0.1066666667 | I39: 收纳模块 | AL39: 影音模块 | AM39: 0.07386363636 | AN39: 0.01329545455
I40: =G39 -> 0.1066666667 | AL40: 运动模块 | AM40: 0.07386363636 | AN40: 0.01329545455
C41: 做模型 | D41: 2 | E41: =F41/D41 -> 1.5 | F41: 3 | G41: 0.02 | I41: 手工模块 | J41: 收纳模块 | K41: 展示模块 | AL41: 健身模块 | AM41: 0.05681818182 | AN41: 0.01022727273
I42: =G41 -> 0.02 | J42: =I42/2 -> 0.01 | K42: =J42 -> 0.01 | AL42: 休闲模块 | AM42: 0.02840909091 | AN42: 0.005113636364
C43: 小憩 | D43: 3.5 | E43: =F43/D43 -> 3.428571429 | F43: 12 | G43: 0.08 | I43: 休闲模块 | J43: 睡眠模块 | AJ43: 御宅 （E类） | AK43: 0.2 | AL43: 影音模块 | AM43: =Q88 -> 0.29090909 | AN43: =$AK$43*AM43 -> 0.058181818
I44: =G43 -> 0.08 | J44: =I44/2 -> 0.04 | AL44: 休闲模块 | AM44: =Q89 -> 0.230303029 | AN44: 0.0460606058
AL45: 睡眠模块 | AM45: =Q90 -> 0.181818181 | AN45: 0.0363636362
A46: 0.17 | B46: 健身达人 （C类） | C46: 平板塑形 | D46: 5 | E46: =F46/D46 -> 5 | F46: 25 | G46: 0.142045454 | I46: 健身模块 | J46: 影音模块 | K46: 休闲模块 | L46: 洗浴模块 | M46: 更衣模块 | O46: B | P46: 洗浴模块 | Q46: =L47+L49+J51+J53+J55+I57 -> 0.3953409085 | R46: 直接模块 | U46: 模块-模块关联 | V46: 洗浴模块 | W46: 更衣模块 | X46: 运动模块 | Y46: 健身模块 | Z46: 休闲模块 | AA46: 影音模块 | AB46: 烹饪模块 | AC46: 睡眠模块 | AD46: 洗漱模块 | AL46: 宠物模块 | AM46: =Q95 -> 0.09090909 | AN46: 0.018181818
I47: =G46 -> 0.142045454 | J47: =I47/2 -> 0.071022727 | K47: =J47 -> 0.071022727 | L47: =K47 -> 0.071022727 | M47: =L47 -> 0.071022727 | O47: C | P47: 更衣模块 | Q47: =M47+M49+K51+K53+K55+I63 -> 0.3653409085 | T47: 直接模块 | U47: 洗浴模块 | AL47: 展示模块 | AM47: =Q92 -> 0.121212121 | AN47: 0.0242424242
C48: 大器械健身 | D48: 5 | E48: =F48/D48 -> 4 | F48: 20 | G48: 0.113636363 | I48: 健身模块 | J48: 影音模块 | K48: 休闲模块 | L48: 洗浴模块 | M48: 更衣模块 | O48: D | P48: 运动模块 | Q48: =I51+I53+I55 -> 0.275 | U48: 更衣模块 | V48: 4 | AL48: 收纳模块 | AM48: =Q96 -> 0.0787878785 | AN48: 0.0157575757
I49: =G48 -> 0.113636363 | J49: =I49/2 -> 0.0568181815 | K49: =J49 -> 0.0568181815 | L49: =K49 -> 0.0568181815 | M49: =L49 -> 0.0568181815 | O49: A | P49: 健身模块 | Q49: =I47+I49 -> 0.255681817 | R49: 核心模块 | U49: 运动模块 | V49: 4 | W49: 4 | AL49: 洗浴模块 | AM49: =Q93 -> 0.115151515 | AN49: 0.023030303
C50: 跑步 | D50: 5 | E50: =F50/D50 -> 4.4 | F50: 22 | G50: 0.125 | I50: 运动模块 | J50: 洗浴模块 | K50: 更衣模块 | O50: E | P50: 休闲模块 | Q50: =K47+K49+J61 -> 0.1578409085 | R50: 间接模块 | T50: 核心模块 | U50: 健身模块 | V50: 5 | W50: 5 | X50: 5 | AL50: 餐食模块 | AM50: =Q94 -> 0.109090909 | AN50: 0.0218181818
I51: =G50 -> 0.125 | J51: =I51/2 -> 0.0625 | K51: =J51 -> 0.0625 | O51: F | P51: 影音模块 | Q51: =J47+J49 -> 0.1278409085 | T51: 间接模块 | U51: 休闲模块 | V51: 2 | W51: 2 | X51: 3 | Y51: 3 | AL51: 园艺模块 | AM51: =Q91 -> 0.133333333 | AN51: 0.0266666666
C52: 打篮球 | D52: 3 | E52: =F52/D52 -> 2.666666667 | F52: 8 | G52: 0.05 | I52: 运动模块 | J52: 洗浴模块 | K52: 更衣模块 | O52: G | P52: 烹饪模块 | Q52: =I59 -> 0.11 | U52: 影音模块 | V52: 2 | W52: 2 | X52: 3 | Y52: 3 | Z52: 2 | AL52: 工作学习模块 | AM52: =Q97 -> 0.048484848 | AN52: 0.0096969696
I53: =G52 -> 0.05 | J53: =I53/2 -> 0.025 | K53: =J53 -> 0.025 | O53: H | P53: 睡眠模块 | Q53: =I65 -> 0.07 | U53: 烹饪模块 | Y53: 3 | AJ53: 社畜 （F类） | AK53: 0.16 | AL53: 休闲模块 | AM53: =Q109 -> 0.220858895 | AN53: =$AK$53*AM53 -> 0.0353374232
C54: 游泳 | D54: 4.2 | E54: =F54/D54 -> 4.285714286 | F54: 18 | G54: 0.1 | I54: 运动模块 | J54: 洗浴模块 | K54: 更衣模块 | P54: 餐食模块 | Q54: =I61 -> 0.06 | R54: 只要A到H 多余去掉 | U54: 睡眠模块 | Y54: 3 | AL54: 更衣模块 | AM54: 0.193251533 | AN54: 0.03092024528
I55: =G54 -> 0.1 | J55: =I55/2 -> 0.05 | K55: =J55 -> 0.05 | P55: 收纳模块 | Q55: =J63 -> 0.05 | T55: + 必要 | U55: 洗漱模块 | Y55: 1 | AL55: 影音模块 | AM55: 0.1779141095 | AN55: 0.02846625752
C56: 淋浴 | D56: 4.6 | E56: =F56/D56 -> 5 | F56: 23 | G56: 0.13 | I56: 洗浴模块 | P56: 洗漱模块 | Q56: =K63 -> 0.05 | AL56: 工作学习模块 | AM56: 0.153374233 | AN56: 0.02453987728
I57: =G56 -> 0.13 | P57: A-H 总分合计 | Q57: =SUM(Q46:Q53) -> 1.757045451 | AL57: 运动模块 | AM57: 0.141104294 | AN57: 0.02257668704
C58: 做西餐 | D58: 4 | E58: =F58/D58 -> 4.75 | F58: 19 | G58: 0.11 | I58: 烹饪模块 | AL58: 收纳模块 | AM58: 0.1196319015 | AN58: 0.01914110424
I59: =G58 -> 0.11 | AL59: 餐食模块 | AM59: 0.1288343555 | AN59: 0.02061349688
C60: 就餐 | D60: 3 | E60: =F60/D60 -> 3.333333333 | F60: 10 | G60: 0.06 | I60: 餐食模块 | J60: 休闲模块 | AL60: 家政模块 | AM60: 0.116564417 | AN60: 0.01865030672
I61: =G60 -> 0.06 | J61: =I61/2 -> 0.03 | AL61: 宠物模块 | AM61: 0.110429447 | AN61: 0.01766871152
C62: 仪容仪表 | D62: 4 | E62: =F62/D62 -> 4.5 | F62: 18 | G62: 0.1 | I62: 更衣模块 | J62: 收纳模块 | K62: 洗漱模块 | AL62: 酒水茶模块 | AM62: 0.1165644165 | AN62: 0.01865030664
I63: =G62 -> 0.1 | J63: =I63/2 -> 0.05 | K63: =J63 -> 0.05 | AL63: 洗浴模块 | AM63: 0.070552147 | AN63: 0.01128834352
C64: 睡觉 | D64: 3 | E64: =F64/D64 -> 4.333333333 | F64: 13 | G64: 0.07 | I64: 睡眠模块 | AL64: 烹饪模块 | AM64: 0.0674846625 | AN64: 0.010797546
I65: =G64 -> 0.07 | AL65: 洗漱模块 | AM65: 0.061349693 | AN65: 0.00981595088
A67: 0.18 | B67: 美妆达人 （D类） | C67: 仪容仪表 | D67: 5 | E67: =F67/D67 -> 5 | F67: 25 | G67: =F67/F86 -> 0.1420454545 | I67: 更衣模块 | J67: 收纳模块 | K67: 洗漱模块 | O67: B | P67: 收纳模块 | Q67: =J68+I70+I72+I78 -> 0.4403409091 | R67: 直接模块 | U67: 模块-模块关联 | V67: 收纳模块 | W67: 洗漱模块 | X67: 更衣模块 | Y67: 洗浴模块 | Z67: 睡眠模块 | AA67: 影音模块 | AB67: 运动模块 | AC67: 健身模块
I68: =G67 -> 0.1420454545 | J68: =I68/2 -> 0.07102272727 | K68: =J68 -> 0.07102272727 | O68: C | P68: 洗漱模块 | Q68: =K68+K70+I76+J78 -> 0.2670454545 | T68: 直接模块 | U68: 收纳模块
C69: 美妆 | D69: 4 | E69: =F69/D69 -> 5 | F69: 20 | G69: =F69/F86 -> 0.1136363636 | I69: 收纳模块 | J69: 更衣模块 | K69: 洗漱模块 | O69: A | P69: 更衣模块 | Q69: =I68+J70+M82+K86 -> 0.2642045455 | R69: 核心模块 | U69: 洗漱模块 | V69: 4
I70: =G69 -> 0.1136363636 | J70: =I70/2 -> 0.05681818182 | K70: =J70/2 -> 0.02840909091 | O70: D | P70: 洗浴模块 | Q70: =I80+L82+J86 -> 0.1732954545 | R70: 直接模块 | T70: 核心模块 | U70: 更衣模块 | V70: 5 | W70: 5
C71: 收纳 | D71: 4.5 | E71: =F71/D71 -> 4.888888889 | F71: 22 | G71: =F71/F86 -> 0.125 | I71: 收纳模块 | O71: E | P71: 睡眠模块 | Q71: =I84 -> 0.1022727273 | R71: 间接模块 | T71: 直接模块 | U71: 洗浴模块 | V71: 4 | W71: 4 | X71: 5
I72: =G71 -> 0.125 | O72: F | P72: 影音模块 | Q72: =I74+J82 -> 0.07386363636 | T72: 间接模块 | U72: 睡眠模块 | X72: 3
C73: 直播 | D73: 3.2 | E73: =F73/D73 -> 2.5 | F73: 8 | G73: =F73/F86 -> 0.04545454545 | I73: 影音模块 | O73: G | P73: 运动模块 | Q73: =I86 -> 0.07386363636 | U73: 影音模块 | X73: 3 | Y73: 2
I74: =G73 -> 0.04545454545 | O74: H | P74: 健身模块 | Q74: =I82 -> 0.05681818182 | U74: 运动模块 | X74: 3 | Y74: 3
C75: 洗漱 | D75: 3.8 | E75: =F75/D75 -> 4.736842105 | F75: 18 | G75: =F75/F86 -> 0.1022727273 | I75: 洗漱模块 | P75: 休闲模块 | Q75: =K82 -> 0.02840909091 | R75: 只要A到H 多余去掉 | U75: 健身模块 | X75: 3 | Y75: 3 | AA75: 3
I76: =G75 -> 0.1022727273 | P76: A-H 总分合计 | Q76: =SUM(Q67:Q74) -> 1.451704545
C77: 美容护肤 | D77: 4.7 | E77: =F77/D77 -> 4.893617021 | F77: 23 | G77: =F77/F86 -> 0.1306818182 | I77: 收纳模块 | J77: 洗漱模块
I78: =G77 -> 0.1306818182 | J78: =I78/2 -> 0.06534090909
C79: 泡澡 | D79: 4.2 | E79: =F79/D79 -> 4.523809524 | F79: 19 | G79: =F79/F86 -> 0.1079545455 | I79: 洗浴模块
I80: =G79 -> 0.1079545455
C81: 平板塑形 | D81: 2.7 | E81: =F81/D81 -> 3.703703704 | F81: 10 | G81: =F81/F86 -> 0.05681818182 | I81: 健身模块 | J81: 影音模块 | K81: 休闲模块 | L81: 洗浴模块 | M81: 更衣模块
I82: =G81 -> 0.05681818182 | J82: =I82/2 -> 0.02840909091 | K82: =J82 -> 0.02840909091 | L82: =K82 -> 0.02840909091 | M82: =L82 -> 0.02840909091
C83: 睡觉 | D83: 3.7 | E83: =F83/D83 -> 4.864864865 | F83: 18 | G83: =F83/F86 -> 0.1022727273 | I83: 睡眠模块
I84: =G83 -> 0.1022727273
C85: 跑步 | D85: 3 | E85: =F85/D85 -> 4.333333333 | F85: 13 | G85: =F85/F86 -> 0.07386363636 | I85: 运动模块 | J85: 洗浴模块 | K85: 更衣模块
F86: =SUM(F67:F85) -> 176 | I86: =G85 -> 0.07386363636 | J86: =I86/2 -> 0.03693181818 | K86: =J86 -> 0.03693181818
A88: 0.2 | B88: 御宅 （E类） | C88: 睡眠 | D88: 5 | E88: =F88/D88 -> 5 | F88: 25 | G88: 0.151515151 | I88: 睡眠模块 | O88: B | P88: 影音模块 | Q88: =I91+I93+I105 -> 0.29090909 | R88: 直接模块 | U88: 模块-模块关联 | V88: 影音模块 | W88: 休闲模块 | X88: 睡眠模块 | Y88: 园艺模块 | Z88: 展示模块 | AA88: 洗浴模块 | AB88: 餐食模块 | AC88: 宠物模块 | AD88: 洗漱模块
I89: =G88 -> 0.151515151 | O89: C | P89: 休闲模块 | Q89: =J91+J93+K95+J97+I103 -> 0.230303029 | T89: 直接模块 | U89: 影音模块
C90: 看影视 | D90: 4.8 | E90: =F90/D90 -> 4.166666667 | F90: 20 | G90: 0.121212121 | I90: 影音模块 | J90: 休闲模块 | O90: A | P90: 睡眠模块 | Q90: =I89+J103 -> 0.181818181 | R90: 核心模块 | U90: 休闲模块 | V90: 4
I91: =G90 -> 0.121212121 | J91: =I91/2 -> 0.0606060605 | O91: D | P91: 园艺模块 | Q91: =I107 -> 0.133333333 | R91: 直接模块 | T91: 核心模块 | U91: 睡眠模块 | V91: 5 | W91: 5
C92: 玩电脑游戏 | D92: 4.7 | E92: =F92/D92 -> 2.127659574 | F92: 10 | G92: 0.06060606 | I92: 影音模块 | J92: 休闲模块 | O92: E | P92: 展示模块 | Q92: =K105+J107 -> 0.121212121 | R92: 间接模块 | T92: 直接模块 | U92: 园艺模块 | V92: 4 | W92: 4 | X92: 5
I93: =G92 -> 0.06060606 | J93: =I93/2 -> 0.03030303 | O93: F | P93: 洗浴模块 | Q93: =I101 -> 0.115151515 | T93: 间接模块 | U93: 展示模块 | X93: 3
C94: 阅读 | D94: 3.1 | E94: =F94/D94 -> 2.580645161 | F94: 8 | G94: 0.048484848 | I94: 工作学习模块 | J94: 收纳模块 | K94: 休闲模块 | O94: G | P94: 餐食模块 | Q94: =I97 -> 0.109090909 | U94: 洗浴模块 | X94: 3 | Y94: 2
I95: =G94 -> 0.048484848 | J95: =I95/2 -> 0.024242424 | K95: =J95 -> 0.024242424 | O95: H | P95: 宠物模块 | Q95: =I99 -> 0.09090909 | U95: 餐食模块 | X95: 3 | Y95: 3
C96: 就餐 | D96: 4.2 | E96: =F96/D96 -> 4.285714286 | F96: 18 | G96: 0.109090909 | I96: 餐食模块 | J96: 休闲模块 | P96: 收纳模块 | Q96: =J95+J105 -> 0.0787878785 | R96: 只要A到H 多余去掉 | U96: 宠物模块 | X96: 3 | Y96: 3 | AA96: 3
I97: =G96 -> 0.109090909 | J97: =I97/2 -> 0.0545454545 | P97: 工作学习模块 | Q97: =I95 -> 0.048484848 | T97: + 必要 | U97: 洗漱模块 | X97: 1
C98: 养猫 | D98: 4.9 | E98: =F98/D98 -> 3.06122449 | F98: 15 | G98: 0.09090909 | I98: 宠物模块 | P98: A-H 总分合计 | Q98: =SUM(Q88:Q95) -> 1.272727268
I99: =G98 -> 0.09090909
C100: 泡澡 | D100: 4.6 | E100: =F100/D100 -> 4.130434783 | F100: 19 | G100: 0.115151515 | I100: 洗浴模块
I101: =G100 -> 0.115151515
C102: 小憩 | D102: 3.1 | E102: =F102/D102 -> 3.225806452 | F102: 10 | G102: 0.06060606 | I102: 休闲模块 | J102: 睡眠模块
I103: =G102 -> 0.06060606 | J103: =I103/2 -> 0.03030303
C104: 追星 | D104: 4.1 | E104: =F104/D104 -> 4.390243902 | F104: 18 | G104: 0.109090909 | I104: 影音模块 | J104: 收纳模块 | K104: 展示模块
I105: =G104 -> 0.109090909 | J105: =I105/2 -> 0.0545454545 | K105: =J105 -> 0.0545454545
C106: 种花 | D106: 3.4 | E106: =F106/D106 -> 6.470588235 | F106: 22 | G106: 0.133333333 | I106: 园艺模块 | J106: 展示模块
I107: =G106 -> 0.133333333 | J107: =I107/2 -> 0.0666666665
A109: 0.16 | B109: 社畜 （F类） | C109: 工作学习 | D109: 5 | E109: =F109/D109 -> 5 | F109: 25 | G109: 0.153374233 | I109: 工作学习模块 | O109: B | P109: 休闲模块 | Q109: =I114+J118+J124 -> 0.220858895 | R109: 直接模块 | U109: 模块-模块关联 | V109: 休闲模块 | W109: 更衣模块 | X109: 影音模块 | Y109: 工作学习模块 | Z109: 运动模块 | AA109: 收纳模块 | AB109: 餐食模块 | AC109: 家政模块 | AD109: 睡眠模块 | AE109: 洗漱模块 | AF109: 洗浴模块
I110: =G109 -> 0.153374233 | O110: C | P110: 更衣模块 | Q110: =I112+K120 -> 0.193251533 | T110: 直接模块 | U110: 休闲模块
C111: 仪容仪表 | D111: 4.7 | E111: =F111/D111 -> 4.255319149 | F111: 20 | G111: 0.122699386 | I111: 更衣模块 | J111: 收纳模块 | K111: 洗漱模块 | O111: D | P111: 影音模块 | Q111: =M114+I118 -> 0.1779141095 | U111: 更衣模块 | V111: 4
I112: =G111 -> 0.122699386 | J112: =I112/2 -> 0.061349693 | K112: =J112 -> 0.061349693 | O112: A | P112: 工作学习模块 | Q112: =I110 -> 0.153374233 | R112: 核心模块 | U112: 影音模块 | V112: 4 | W112: 4
C113: 微聚会 | D113: 4.9 | E113: =F113/D113 -> 4.489795918 | F113: 22 | G113: 0.134969325 | I113: 休闲模块 | J113: 餐食模块 | K113: 烹饪模块 | L113: 酒水茶模块 | M113: 影音模块 | O113: E | P113: 运动模块 | Q113: =I120 -> 0.141104294 | R113: 间接模块 | T113: 核心模块 | U113: 工作学习模块 | V113: 5 | W113: 5 | X113: 5
I114: =G113 -> 0.134969325 | J114: =I114/2 -> 0.0674846625 | K114: =J114 -> 0.0674846625 | L114: =K114 -> 0.0674846625 | M114: =L114 -> 0.0674846625 | O114: F | P114: 收纳模块 | Q114: =J112+J122 -> 0.1196319015 | T114: 间接模块 | U114: 运动模块 | W114: 3 | Y114: 3
C115: 喝咖啡 | D115: 3.2 | E115: =F115/D115 -> 2.5 | F115: 8 | G115: 0.049079754 | I115: 酒水茶模块 | O115: G | P115: 餐食模块 | Q115: =J114+I124 -> 0.1288343555 | U115: 收纳模块 | W115: 3 | Y115: 3
I116: =G115 -> 0.049079754 | O116: H | P116: 家政模块 | Q116: =I122 -> 0.116564417 | U116: 餐食模块 | V116: 3 | X116: 2 | Y116: 3
C117: 看影视 | D117: 4.5 | E117: =F117/D117 -> 4 | F117: 18 | G117: 0.110429447 | I117: 影音模块 | J117: 休闲模块 | P117: 宠物模块 | Q117: =I126 -> 0.110429447 | R117: 只要A到H 多余去掉 | U117: 家政模块 | Y117: 3 | AA117: 3
I118: =G117 -> 0.110429447 | J118: =I118/2 -> 0.0552147235 | P118: 酒水茶模块 | Q118: =L114+I116 -> 0.1165644165 | T118: + 必要 | U118: 睡眠模块 | Y118: 1
C119: 跑步 | D119: 4.3 | E119: =F119/D119 -> 5.348837209 | F119: 23 | G119: 0.141104294 | I119: 运动模块 | J119: 洗浴模块 | K119: 更衣模块 | P119: 洗浴模块 | Q119: =J120 -> 0.070552147 | U119: 洗漱模块 | Y119: 1
I120: =G119 -> 0.141104294 | J120: =I120/2 -> 0.070552147 | K120: =J120 -> 0.070552147 | P120: 烹饪模块 | Q120: =K114 -> 0.0674846625 | U120: 洗浴模块 | Y120: 1
C121: 洗干熨衣 | D121: 3.8 | E121: =F121/D121 -> 5 | F121: 19 | G121: 0.116564417 | I121: 家政模块 | J121: 收纳模块 | P121: 洗漱模块 | Q121: =K112 -> 0.061349693
I122: =G121 -> 0.116564417 | J122: =I122/2 -> 0.0582822085 | P122: A-H 总分合计 | Q122: =SUM(Q109:Q116) -> 1.251533739
C123: 就餐 | D123: 3.2 | E123: =F123/D123 -> 3.125 | F123: 10 | G123: 0.061349693 | I123: 餐食模块 | J123: 休闲模块
I124: =G123 -> 0.061349693 | J124: =I124/2 -> 0.0306748465
C125: 养猫 | D125: 4.2 | E125: =F125/D125 -> 4.285714286 | F125: 18 | G125: 0.110429447 | I125: 宠物模块
I126: =G125 -> 0.110429447

Sheet 模块加总分值表
A1: 序号ID | B1: 项目 | C1: 年/月/日 | D1: 年龄 | E1: 城市 | F1: 生命周期 | G1: 人群分类 | H1: 数据项-功能模块 | I1: 标准分值 | J1: 模块排序 | K1: 模块类型 | L1: 关联项 | M1: 标准分值 | N1: 内容 | O1: 链接 | P1: 备注
A2: 1 | B2: WIII | C2: 2019 | D2: 85后 | E2: 上海 | F2: 一代居 | G2: A | H2: 休闲模块 | I2: 0.3 | J2: B | K2: 直接模块 | L2: 影音模块 | M2: 4
A3: 2 | B3: WIII | C3: 2019 | D3: 85后 | E3: 上海 | F3: 一代居 | G3: A | H3: 休闲模块 | I3: 0.3 | J3: B | K3: 直接模块 | L3: 工作学习模块 | M3: 4
A4: 3 | B4: WIII | C4: 2019 | D4: 85后 | E4: 上海 | F4: 一代居 | G4: A | H4: 休闲模块 | I4: 0.3 | J4: B | K4: 直接模块 | L4: 宠物模块 | M4: 5
A5: 4 | B5: WIII | C5: 2019 | D5: 85后 | E5: 上海 | F5: 一代居 | G5: A | H5: 休闲模块 | I5: 0.3 | J5: B | K5: 直接模块 | L5: 收纳模块 | M5: 2
A6: 5 | B6: WIII | C6: 2019 | D6: 85后 | E6: 上海 | F6: 一代居 | G6: A | H6: 休闲模块 | I6: 0.3 | J6: B | K6: 直接模块 | L6: 睡眠模块 | M6: 3
A7: 6 | B7: WIII | C7: 2019 | D7: 85后 | E7: 上海 | F7: 一代居 | G7: A | H7: 影音模块 | I7: 0.227 | J7: C | K7: 直接模块 | L7: 工作学习模块 | M7: 4
A8: 7 | B8: WIII | C8: 2019 | D8: 85后 | E8: 上海 | F8: 一代居 | G8: A | H8: 影音模块 | I8: 0.227 | J8: C | K8: 直接模块 | L8: 宠物模块 | M8: 5
A9: 8 | B9: WIII | C9: 2019 | D9: 85后 | E9: 上海 | F9: 一代居 | G9: A | H9: 影音模块 | I9: 0.227 | J9: C | K9: 直接模块 | L9: 休闲模块 | M9: 4
A10: 9 | B10: WIII | C10: 2019 | D10: 85后 | E10: 上海 | F10: 一代居 | G10: A | H10: 工作学习模块 | I10: 0.173 | J10: D | K10: 直接模块 | L10: 宠物模块 | M10: 5
A11: 10 | B11: WIII | C11: 2019 | D11: 85后 | E11: 上海 | F11: 一代居 | G11: A | H11: 工作学习模块 | I11: 0.173 | J11: D | K11: 直接模块 | L11: 收纳模块 | M11: 3
A12: 11 | B12: WIII | C12: 2019 | D12: 85后 | E12: 上海 | F12: 一代居 | G12: A | H12: 工作学习模块 | I12: 0.173 | J12: D | K12: 直接模块 | L12: 休闲模块 | M12: 4
A13: 12 | B13: WIII | C13: 2019 | D13: 85后 | E13: 上海 | F13: 一代居 | G13: A | H13: 工作学习模块 | I13: 0.173 | J13: D | K13: 直接模块 | L13: 影音模块 | M13: 4
A14: 13 | B14: WIII | C14: 2019 | D14: 85后 | E14: 上海 | F14: 一代居 | G14: A | H14: 宠物模块 | I14: 0.167 | J14: A | K14: 核心模块 | L14: 收纳模块 | M14: 3
A15: 14 | B15: WIII | C15: 2019 | D15: 85后 | E15: 上海 | F15: 一代居 | G15: A | H15: 宠物模块 | I15: 0.167 | J15: A | K15: 核心模块 | L15: 睡眠模块 | M15: 3
A16: 15 | B16: WIII | C16: 2019 | D16: 85后 | E16: 上海 | F16: 一代居 | G16: A | H16: 宠物模块 | I16: 0.167 | J16: A | K16: 核心模块 | L16: 洗浴模块 | M16: 3
A17: 16 | B17: WIII | C17: 2019 | D17: 85后 | E17: 上海 | F17: 一代居 | G17: A | H17: 宠物模块 | I17: 0.167 | J17: A | K17: 核心模块 | L17: 家政模块 | M17: 3
A18: 17 | B18: WIII | C18: 2019 | D18: 85后 | E18: 上海 | F18: 一代居 | G18: A | H18: 宠物模块 | I18: 0.167 | J18: A | K18: 核心模块 | L18: 休闲模块 | M18: 5
A19: 18 | B19: WIII | C19: 2019 | D19: 85后 | E19: 上海 | F19: 一代居 | G19: A | H19: 宠物模块 | I19: 0.167 | J19: A | K19: 核心模块 | L19: 影音模块 | M19: 5
A20: 19 | B20: WIII | C20: 2019 | D20: 85后 | E20: 上海 | F20: 一代居 | G20: A | H20: 宠物模块 | I20: 0.167 | J20: A | K20: 核心模块 | L20: 工作学习模块 | M20: 5
A21: 20 | B21: WIII | C21: 2019 | D21: 85后 | E21: 上海 | F21: 一代居 | G21: A | H21: 收纳模块 | I21: 0.132 | J21: E | K21: 间接模块 | L21: 家政模块 | M21: 3
A22: 21 | B22: WIII | C22: 2019 | D22: 85后 | E22: 上海 | F22: 一代居 | G22: A | H22: 收纳模块 | I22: 0.132 | J22: E | K22: 间接模块 | L22: 休闲模块 | M22: 2
A23: 22 | B23: WIII | C23: 2019 | D23: 85后 | E23: 上海 | F23: 一代居 | G23: A | H23: 收纳模块 | I23: 0.132 | J23: E | K23: 间接模块 | L23: 工作学习模块 | M23: 3
A24: 23 | B24: WIII | C24: 2019 | D24: 85后 | E24: 上海 | F24: 一代居 | G24: A | H24: 收纳模块 | I24: 0.132 | J24: E | K24: 间接模块 | L24: 宠物模块 | M24: 3
A25: 24 | B25: WIII | C25: 2019 | D25: 85后 | E25: 上海 | F25: 一代居 | G25: A | H25: 睡眠模块 | I25: 0.13 | J25: F | K25: 间接模块 | L25: 休闲模块 | M25: 3
A26: 25 | B26: WIII | C26: 2019 | D26: 85后 | E26: 上海 | F26: 一代居 | G26: A | H26: 睡眠模块 | I26: 0.13 | J26: F | K26: 间接模块 | L26: 宠物模块 | M26: 3
A27: 26 | B27: WIII | C27: 2019 | D27: 85后 | E27: 上海 | F27: 一代居 | G27: A | H27: 睡眠模块 | I27: 0.13 | J27: F | K27: 间接模块 | L27: 休闲模块 | M27: 3
A28: 27 | B28: WIII | C28: 2019 | D28: 85后 | E28: 上海 | F28: 一代居 | G28: A | H28: 睡眠模块 | I28: 0.13 | J28: F | K28: 间接模块 | L28: 宠物模块 | M28: 3
A29: 28 | B29: WIII | C29: 2019 | D29: 85后 | E29: 上海 | F29: 一代居 | G29: A | H29: 洗浴模块 | I29: 0.107 | J29: G | K29: 间接模块 | L29: 宠物模块 | M29: 3
A30: 29 | B30: WIII | C30: 2019 | D30: 85后 | E30: 上海 | F30: 一代居 | G30: A | H30: 家政模块 | I30: 0.09 | J30: H | K30: 间接模块 | L30: 宠物模块 | M30: 3
A31: 30 | B31: WIII | C31: 2019 | D31: 85后 | E31: 上海 | F31: 一代居 | G31: A | H31: 家政模块 | I31: 0.09 | J31: H | K31: 间接模块 | L31: 收纳模块 | M31: 3
A32: 31 | B32: WIII | C32: 2019 | D32: 85后 | E32: 上海 | F32: 一代居 | G32: A | H32: 洗漱模块 | I32: 0.053 | J32: I | K32: 间接模块 | L32: 宠物模块 | M32: 1

Sheet 行为-模块映射表
A1: 行为ID | B1: 行为标签 | C1: 基础功能模块ID | D1: 附属功能模块1-ID | E1: 附属功能模块2-ID | F1: 附属功能模块3-ID | G1: 附属功能模块4-ID | H1: 附属功能模块5-ID
A2: 1 | B2: 看影视 | C2: 影音模块 | D2: 休闲模块
A3: 2 | B3: 喝酒 | C3: 酒水茶模块
A4: 3 | B4: 喝咖啡 | C4: 酒水茶模块
A5: 4 | B5: 喝茶 | C5: 酒水茶模块
A6: 5 | B6: 睡觉 | C6: 睡眠模块
A7: 6 | B7: 小憩 | C7: 休闲模块 | D7: 睡眠模块
A8: 7 | B8: 冥想 | C8: 休闲模块 | D8: 睡眠模块
A9: 8 | B9: 阅读 | C9: 工作学习模块 | D9: 收纳模块 | E9: 休闲模块
A10: 9 | B10: 工作学习 | C10: 工作学习模块
A11: 10 | B11: 跑步 | C11: 运动健身模块 | D11: 洗浴模块 | E11: 更衣模块
A12: 11 | B12: 打篮球 | C12: 运动健身模块 | D12: 洗浴模块 | E12: 更衣模块
A13: 12 | B13: 打乒乓 | C13: 运动健身模块 | D13: 洗浴模块 | E13: 更衣模块
A14: 13 | B14: 游泳 | C14: 运动健身模块 | D14: 洗浴模块 | E14: 更衣模块
A15: 14 | B15: 平板塑形 | C15: 健身模块 | D15: 影视模块 | E15: 休闲模块 | F15: 洗浴模块 | G15: 更衣模块
A16: 15 | B16: 大器械 | C16: 健身模块 | D16: 影视模块 | E16: 休闲模块 | F16: 洗浴模块 | G16: 更衣模块
A17: 16 | B17: 小器械 | C17: 健身模块 | D17: 影视模块 | E17: 休闲模块 | F17: 洗浴模块 | G17: 更衣模块
A18: 17 | B18: 失眠 | C18: 睡眠模块
A19: 18 | B19: 养猫 | C19: 宠物模块
A20: 19 | B20: 养狗 | C20: 宠物模块
A21: 20 | B21: 养冷血动物 | C21: 宠物模块
A22: 21 | B22: 养哺乳动物 | C22: 宠物模块
A23: 22 | B23: 洗澡美容 | C23: 宠物模块
A24: 23 | B24: 托管游戏 | C24: 宠物模块
A25: 24 | B25: 遛狗遛猫 | C25: 宠物模块
A26: 25 | B26: 洗干熨衣 | C26: 家政模块 | D26: 收纳模块
A27: 26 | B27: 打扫清洁 | C27: 家政模块 | D27: 收纳模块
A28: 27 | B28: 做陶艺 | C28: 手工模块 | D28: 收纳模块 | E28: 展示模块
A29: 28 | B29: 做模型 | C29: 手工模块 | D29: 收纳模块 | E29: 展示模块
A30: 29 | B30: 插花 | C30: 手工模块 | D30: 收纳模块 | E30: 展示模块
A31: 30 | B31: 做布艺 | C31: 手工模块 | D31: 收纳模块 | E31: 展示模块
A32: 31 | B32: 做首饰 | C32: 手工模块 | D32: 收纳模块 | E32: 展示模块
A33: 32 | B33: 画布作画 | C33: 手工模块 | D33: 收纳模块 | E33: 展示模块
A34: 33 | B34: 数字做插画 | C34: 手工模块 | D34: 收纳模块 | E34: 展示模块
A35: 34 | B35: 直播 | C35: 影音模块
A36: 35 | B36: 唱歌 | C36: 影音模块 | D36: 休闲模块
A37: 36 | B37: 美妆 | C37: 收纳模块 | D37: 更衣模块 | E37: 洗漱模块
A38: 37 | B38: 玩乐器 | C38: 影音模块 | D38: 展示模块 | E38: 收纳模块 | F38: 休闲模块
A39: 38 | B39: 收藏 | C39: 展示模块 | D39: 收纳模块
A40: 39 | B40: 收纳 | C40: 收纳模块
A41: 40 | B41: 玩体感游戏 | C41: 影音模块 | D41: 休闲模块
A42: 41 | B42: 玩电脑游戏 | C42: 影音模块 | D42: 休闲模块
A43: 42 | B43: 玩桌游 | C43: 休闲模块
A44: 43 | B44: 美容护肤 | C44: 收纳模块 | D44: 洗漱模块
A45: 44 | B45: 洗漱 | C45: 洗漱模块
A46: 45 | B46: 淋浴 | C46: 洗浴模块
A47: 46 | B47: 泡澡 | C47: 洗浴模块
A48: 47 | B48: 湿蒸 | C48: 洗浴模块 | D48: 更衣模块
A49: 48 | B49: 桑拿 | C49: 洗浴模块 | D49: 更衣模块
A50: 49 | B50: spa | C50: 洗浴模块 | D50: 更衣模块
A51: 50 | B51: 做中餐 | C51: 烹饪模块
A52: 51 | B52: 做西餐 | C52: 烹饪模块
A53: 52 | B53: 烧烤 | C53: 烹饪模块
A54: 53 | B54: 烘培 | C54: 烹饪模块
A55: 54 | B55: 就餐 | C55: 餐食模块 | D55: 休闲模块
A56: 55 | B56: 仪容仪表 | C56: 更衣模块 | D56: 收纳模块 | E56: 洗漱模块
A57: 56 | B57: 收包裹 | C57: 收纳模块
A58: 57 | B58: 收生鲜 | C58: 收纳模块
A59: 58 | B59: 追星 | C59: 影音模块 | D59: 收纳模块 | E59: 展示模块
A60: 59 | B60: 种菜 | C60: 园艺模块
A61: 60 | B61: 种花 | C61: 园艺模块 | D61: 展示模块
A62: 61 | B62: 微聚会 | C62: 休闲模块 | D62: 餐食模块 | E62: 烹饪模块 | F62: 酒水茶模块 | G62: 影音模块
A63: 62 | B63: 聚会 | C63: 休闲模块 | D63: 餐食模块 | E63: 烹饪模块 | F63: 酒水茶模块 | G63: 影音模块

Sheet 上海+85后_最新
A1: 上海 | B1: 85后
B2: 人设——行为算法 | I2: 行为——功能模块算法 | T2: 模块——模块关系算法 | AJ2: 公区模块算法——选前6名
B3: 人设标签 | C3: 行为标签 | D3: 权重 | E3: 频次 | F3: 总分 | G3: 标准值 | I3: 主要模块 | J3: 次要模块 | O3: 排名 | P3: 模块标签 | Q3: 总分 | R3: 模块类型 | U3: 模块-模块关联 | V3: 休闲模块 | W3: 影音模块 | X3: 工作学习模块 | Y3: 宠物模块 | Z3: 收纳模块 | AA3: 睡眠模块 | AB3: 洗浴模块 | AC3: 家政模块 | AD3: 洗漱模块 | AJ3: 人群 | AK3: 占比 | AL3: 模块标签 | AM3: 原值 | AN3: 加权后的值 | AO3: 公区模块 | AP3: 总分 | AQ3: 排名 | AR3: 调取 6 个3d模型
A4: 0.16 | B4: 铲屎官 （A类） | C4: 养猫 | D4: 5 | E4: =F4/D4 -> 5 | F4: 25 | G4: 0.1666666667 | I4: 宠物模块 | O4: B | P4: 休闲模块 | Q4: =J7+K9+I13+J15+K21 -> 0.3 | R4: 直接模块 | T4: 直接模块 | U4: 休闲模块 | AJ4: 铲屎官 （A类） | AK4: =A4 -> 0.16 | AL4: 休闲模块 | AM4: =Q4 -> 0.3 | AN4: =$AK$4*AM4 -> 0.048 | AO4: 影音模块 | AP4: =SUMPRODUCT(($AL$4:$AL$51=AO4)*$AN$4:$AN$51) -> 0.2216431512 | AQ4: 1 | AR4: (调取3d模型)
I5: =G4 -> 0.1666666667 | O5: C | P5: 影音模块 | Q5: =I7+I15 -> 0.2266666667 | U5: 影音模块 | V5: 4 | AL5: 影音模块 | AM5: 0.2266666667 | AN5: =$AK$4*AM5 -> 0.03626666667 | AO5: 休闲模块 | AP5: =SUMPRODUCT(($AL$4:$AL$51=AO5)*$AN$4:$AN$51) -> 0.2055446198 | AQ5: 2 | AR5: (调取3d模型)
C6: 看影视 | D6: 4 | E6: =F6/D6 -> 5 | F6: 20 | G6: 0.1333333333 | I6: 影音模块 | J6: 休闲模块 | O6: D | P6: 工作学习模块 | Q6: =I9+I21 -> 0.1733333333 | U6: 工作学习模块 | V6: 4 | W6: 4 | AL6: 工作学习模块 | AM6: 0.1733333333 | AN6: =$AK$4*AM6 -> 0.02773333333 | AO6: 更衣模块 | AP6: =SUMPRODUCT(($AL$4:$AL$51=AO6)*$AN$4:$AN$51) -> 0.1405850179 | AQ6: 3 | AR6: (公区没有此模块，跳过)
I7: =G6 -> 0.1333333333 | J7: =I7/2 -> 0.06666666667 | O7: A | P7: 宠物模块 | Q7: =I5 -> 0.1666666667 | R7: 核心模块 | T7: 核心模块 | U7: 宠物模块 | V7: 5 | W7: 5 | X7: 5 | AL7: 宠物模块 | AM7: 0.1666666667 | AN7: =$AK$4*AM7 -> 0.02666666667 | AO7: 洗浴模块 | AP7: =SUMPRODUCT(($AL$4:$AL$51=AO7)*$AN$4:$AN$51) -> 0.1384981059 | AQ7: 4 | AR7: (调取3d模型)
C8: 阅读 | D8: 4 | E8: =F8/D8 -> 4.5 | F8: 18 | G8: 0.12 | I8: 工作学习模块 | J8: 收纳模块 | K8: 休闲模块 | O8: E | P8: 收纳模块 | Q8: =J9+J21+J23 -> 0.1316666667 | R8: 间接模块 | T8: 间接模块 | U8: 收纳模块 | V8: 2 | X8: 3 | Y8: 3 | AL8: 收纳模块 | AM8: 0.1316666667 | AN8: =$AK$4*AM8 -> 0.02106666667 | AO8: 收纳模块 | AP8: =SUMPRODUCT(($AL$4:$AL$51=AO8)*$AN$4:$AN$51) -> 0.1368024679 | AQ8: 5 | AR8: (调取3d模型)
I9: =G8 -> 0.12 | J9: 0.06 | K9: 0.06 | O9: F | P9: 睡眠模块 | Q9: =J13+I19 -> 0.13 | U9: 睡眠模块 | V9: 3 | Y9: 3 | AL9: 睡眠模块 | AM9: 0.13 | AN9: =$AK$4*AM9 -> 0.0208 | AO9: 运动健身模块 | AP9: =SUMPRODUCT(($AL$4:$AL$51=AO9)*$AN$4:$AN$51) -> 0.1363153232 | AQ9: 6 | AR9: (调取3d模型)
C10: 淋浴 | D10: 4.5 | E10: =F10/D10 -> 3.555555556 | F10: 16 | G10: 0.1066666667 | I10: 洗浴模块 | O10: G | P10: 洗浴模块 | Q10: =I11 -> 0.1066666667 | U10: 洗浴模块 | Y10: 3 | AL10: 洗浴模块 | AM10: 0.1066666667 | AN10: =$AK$4*AM10 -> 0.01706666667 | AO10: 睡眠模块 | AP10: =SUMPRODUCT(($AL$4:$AL$51=AO10)*$AN$4:$AN$51) -> 0.08747272711 | AQ10: 7 | AR10: (公区没有此模块，跳过)
I11: =G10 -> 0.1066666667 | O11: H | P11: 家政模块 | Q11: =I23 -> 0.09 | U11: 家政模块 | Y11: 3 | Z11: 3 | AL11: 家政模块 | AM11: 0.09 | AN11: =$AK$4*AM11 -> 0.0144 | AO11: 工作学习模块 | AP11: =SUMPRODUCT(($AL$4:$AL$51=AO11)*$AN$4:$AN$51) -> 0.06960654395 | AQ11: 8 | AR11: (调取3d模型)
C12: 小憩 | D12: 3 | E12: =F12/D12 -> 5 | F12: 15 | G12: 0.1 | I12: 休闲模块 | J12: 睡眠模块 | P12: 洗漱模块 | Q12: =I17 -> 0.06 | R12: 只要A到H 多余去掉 | T12: + 必要 | U12: 洗漱模块 | Y12: 1 | AJ12: 游戏咖 （B类） | AK12: 0.13 | AL12: 影音模块 | AM12: =Q25 -> 0.49 | AN12: =AM12*$AK$12 -> 0.0637 | AO12: 餐食模块 | AP12: =SUMPRODUCT(($AL$4:$AL$51=AO12)*$AN$4:$AN$51) -> 0.05913167868 | AQ12: 9 | AR12: (公区没有此模块，跳过)
I13: =G12 -> 0.1 | J13: =I13/2 -> 0.05 | P13: A-H 总分合计 | Q13: =SUM(Q4:Q11) -> 1.325 | AL13: 休闲模块 | AM13: 0.34 | AN13: 0.0442 | AO13: 洗漱模块 | AP13: =SUMPRODUCT(($AL$4:$AL$51=AO13)*$AN$4:$AN$51) -> 0.04806818182 | AQ13: 10 | AR13: (公区没有此模块，跳过)
C14: 玩电脑游戏 | D14: 3 | E14: =F14/D14 -> 4.666666667 | F14: 14 | G14: 0.09333333333 | I14: 影音模块 | J14: 休闲模块 | AL14: 酒水茶模块 | AM14: 0.1366666667 | AN14: 0.01776666667 | AO14: 宠物模块 | AP14: =SUMPRODUCT(($AL$4:$AL$51=AO14)*$AN$4:$AN$51) -> 0.04484848467 | AQ14: 11
I15: =G14 -> 0.09333333333 | J15: =I15/2 -> 0.04666666667 | T15: 模块-模块关联性格式化标准 | V15: 引力 | W15: 必要的增加只影响“人工原型设计”，俊柯3D不需要考虑，“自动组合”只需要A-H个模块信息： 1）排名 2）模块标签 3）模块类型（核心/直接/间接） | AL15: 工作学习模块 | AM15: 0.1333333333 | AN15: 0.01733333333 | AO15: 家政模块 | AP15: =SUMPRODUCT(($AL$4:$AL$51=AO15)*$AN$4:$AN$51) -> 0.03305030672 | AQ15: 12
C16: 洗漱 | D16: 4 | E16: =F16/D16 -> 3.25 | F16: 13 | G16: 0.06 | I16: 洗漱模块 | T16: 核心模块 | U16: 直接模块 | V16: 5 | AL16: 收纳模块 | AM16: 0.1333333333 | AN16: 0.01733333333 | AO16: 展示模块 | AP16: =SUMPRODUCT(($AL$4:$AL$51=AO16)*$AN$4:$AN$51) -> 0.02987575753 | AQ16: 13 | AR16: (公区没有此模块，跳过)
I17: =G16 -> 0.06 | T17: 核心模块 | U17: 间接模块(H前) | V17: 3 | AL17: 餐食模块 | AM17: 0.05 | AN17: 0.0065 | AO17: 园艺模块 | AP17: =SUMPRODUCT(($AL$4:$AL$51=AO17)*$AN$4:$AN$51) -> 0.0266666666 | AQ17: 14
C18: 睡觉 | D18: 3 | E18: =F18/D18 -> 4 | F18: 12 | G18: 0.08 | I18: 睡眠模块 | T18: 直接模块 | U18: 直接模块 | V18: 4 | AL18: 烹饪模块 | AM18: 0.05 | AN18: 0.0065 | AO18: 烹饪模块 | AP18: =SUMPRODUCT(($AL$4:$AL$51=AO18)*$AN$4:$AN$51) -> 0.0252 | AQ18: 15
I19: =G18 -> 0.08 | T19: 主要模块 | U19: 次要模块 | V19: 3 | AL19: 展示模块 | AM19: 0.04333333333 | AN19: 0.005633333333 | AO19: 酒水茶模块 | AP19: =SUMPRODUCT(($AL$4:$AL$51=AO19)*$AN$4:$AN$51) -> 0.01776666667 | AQ19: 16
C20: 工作学习 | D20: 3 | E20: =F20/D20 -> 2.666666667 | F20: 8 | G20: 0.05333333333 | I20: 工作学习模块 | J20: 收纳模块 | K20: 休闲模块 | T20: 次要模块 | U20: 次要模块 | V20: 2 | AJ20: 健身达人 （C类） | AK20: 0.17 | AL20: 运动健身模块 | AM20: =Q46 -> 0.530681817 | AN20: =$AK$20*AM20 -> 0.09021590889 | AO20: 手工模块 | AP20: =SUMPRODUCT(($AL$4:$AL$51=AO20)*$AN$4:$AN$51) -> 0 | AQ20: 17 | AR20: (公区没有此模块，跳过)
I21: =G20 -> 0.05333333333 | J21: =I21/2 -> 0.02666666667 | K21: =J21 -> 0.02666666667 | T21: + 必要 | U21: 核心模块 | V21: 1 | AL21: 洗浴模块 | AM21: 0.3953409085 | AN21: 0.06720795444
C22: 打扫清洁 | D22: 3 | E22: =F22/D22 -> 3 | F22: 9 | G22: 0.09 | I22: 家政模块 | J22: 收纳模块 | AL22: 更衣模块 | AM22: 0.3653409085 | AN22: 0.06210795445
I23: =G22 -> 0.09 | J23: =I23/2 -> 0.045 | AL23: 休闲模块 | AM23: 0.1578409085 | AN23: 0.02683295445
AL24: 影音模块 | AM24: 0.1278409085 | AN24: 0.02173295445
A25: 0.13 | B25: 游戏咖 （B类） | C25: 玩电脑游戏 | D25: 5 | E25: =F25/D25 -> 5 | F25: 25 | G25: 0.1666666667 | I25: 影音模块 | J25: 休闲模块 | O25: A | P25: 影音模块 | Q25: =I26+I30+M34+I36 -> 0.49 | R25: 核心模块 | U25: 模块-模块关联 | V25: 影音模块 | W25: 休闲模块 | X25: 酒水茶模块 | Y25: 工作学习模块 | Z25: 收纳模块 | AA25: 餐食模块 | AB25: 烹饪模块 | AC25: 展示模块 | AD25: 睡眠模块 | AE25: 洗漱模块 | AF25: 洗浴模块 | AL25: 烹饪模块 | AM25: 0.11 | AN25: 0.0187
I26: =G25 -> 0.1666666667 | J26: =I26/2 -> 0.08333333333 | O26: B | P26: 休闲模块 | Q26: =J26+J30+I34+I44 -> 0.34 | R26: 直接模块 | T26: 核心模块 | U26: 影音模块 | AL26: 睡眠模块 | AM26: 0.07 | AN26: 0.0119
C27: 工作学习 | D27: 4 | E27: =F27/D27 -> 5 | F27: 20 | G27: 0.1333333333 | I27: 工作学习模块 | O27: C | P27: 酒水茶模块 | Q27: =I32+L34 -> 0.1366666667 | T27: 直接模块 | U27: 休闲模块 | V27: 5 | AL27: 餐食模块 | AM27: 0.06 | AN27: 0.0102
I28: =G27 -> 0.1333333333 | O28: D | P28: 工作学习模块 | Q28: =I28 -> 0.1333333333 | U28: 酒水茶模块 | V28: 5 | W28: 4 | AJ28: 美妆达人 （D类） | AK28: 0.18 | AL28: 收纳模块 | AM28: =Q67 -> 0.4403409091 | AN28: =$AK$28*AM28 -> 0.07926136364
C29: 看影视 | D29: 4 | E29: =F29/D29 -> 5.75 | F29: 23 | G29: 0.1533333333 | I29: 影音模块 | J29: 休闲模块 | O29: E | P29: 收纳模块 | Q29: =J38+I40+J42 -> 0.1333333333 | R29: 间接模块 | U29: 工作学习模块 | V29: 5 | W29: 4 | X29: 4 | AL29: 洗漱模块 | AM29: 0.2670454545 | AN29: 0.04806818182
I30: =G29 -> 0.1533333333 | J30: =I30/2 -> 0.07666666667 | O30: F | P30: 餐食模块 | Q30: =J34 -> 0.05 | T30: 间接模块 | U30: 收纳模块 | V30: 3 | AL30: 更衣模块 | AM30: 0.2642045455 | AN30: 0.04755681818
C31: 喝咖啡 | D31: 3 | E31: =F31/D31 -> 4.333333333 | F31: 13 | G31: 0.08666666667 | I31: 酒水茶模块 | O31: G | P31: 烹饪模块 | Q31: =K34 -> 0.05 | U31: 餐食模块 | V31: 3 | W31: 3 | X31: 2 | AL31: 洗浴模块 | AM31: 0.1732954545 | AN31: 0.03119318182
I32: =G31 -> 0.08666666667 | O32: H | P32: 展示模块 | Q32: =I38+K42 -> 0.04333333333 | U32: 烹饪模块 | V32: 3 | W32: 3 | X32: 2 | AA32: 2 | AL32: 运动健身模块 | AM32: 0.1306818182 | AN32: 0.02352272727
C33: 聚会 | D33: 4.5 | E33: =F33/D33 -> 3.333333333 | F33: 15 | G33: 0.1 | I33: 休闲模块 | J33: 餐食模块 | K33: 烹饪模块 | L33: 酒水茶模块 | M33: 影音模块 | P33: 睡眠模块 | Q33: =J44 -> 0.04 | R33: 只要A到H 多余去掉 | U33: 展示模块 | V33: 3 | Z33: 3 | AL33: 睡眠模块 | AM33: 0.1022727273 | AN33: 0.01840909091
I34: =G33 -> 0.1 | J34: =I34/2 -> 0.05 | K34: =J34 -> 0.05 | L34: =K34 -> 0.05 | M34: =L34 -> 0.05 | P34: 手工模块 | Q34: =I42 -> 0.02 | T34: + 必要 | U34: 睡眠模块 | V34: 1 | AL34: 影音模块 | AM34: 0.07386363636 | AN34: 0.01329545455
C35: 直播 | D35: 4 | E35: =F35/D35 -> 4.5 | F35: 18 | G35: 0.12 | I35: 影音模块 | P35: A-H 总分合计 | Q35: =SUM(Q25:Q32) -> 1.376666667 | U35: 洗漱模块 | V35: 1 | AL35: 休闲模块 | AM35: 0.02840909091 | AN35: 0.005113636364
I36: =G35 -> 0.12 | U36: 洗浴模块 | V36: 1 | AJ36: 御宅 （E类） | AK36: 0.2 | AL36: 影音模块 | AM36: =Q88 -> 0.29090909 | AN36: =$AK$36*AM36 -> 0.058181818
C37: 收藏 | D37: 2 | E37: =F37/D37 -> 2.5 | F37: 5 | G37: 0.03333333333 | I37: 展示模块 | J37: 收纳模块 | AL37: 休闲模块 | AM37: 0.230303029 | AN37: 0.0460606058
I38: =G37 -> 0.03333333333 | J38: =I38/2 -> 0.01666666667 | AL38: 睡眠模块 | AM38: 0.181818181 | AN38: 0.0363636362
C39: 收纳 | D39: 4 | E39: =F39/D39 -> 4 | F39: 16 | G39: 0.1066666667 | I39: 收纳模块 | AL39: 园艺模块 | AM39: 0.133333333 | AN39: 0.0266666666
I40: =G39 -> 0.1066666667 | AL40: 展示模块 | AM40: 0.121212121 | AN40: 0.0242424242
C41: 做模型 | D41: 2 | E41: =F41/D41 -> 1.5 | F41: 3 | G41: 0.02 | I41: 手工模块 | J41: 收纳模块 | K41: 展示模块 | AL41: 洗浴模块 | AM41: 0.115151515 | AN41: 0.023030303
I42: =G41 -> 0.02 | J42: =I42/2 -> 0.01 | K42: =J42 -> 0.01 | AL42: 餐食模块 | AM42: 0.109090909 | AN42: 0.0218181818
C43: 小憩 | D43: 3.5 | E43: =F43/D43 -> 3.428571429 | F43: 12 | G43: 0.08 | I43: 休闲模块 | J43: 睡眠模块 | AL43: 宠物模块 | AM43: 0.09090909 | AN43: 0.018181818
I44: =G43 -> 0.08 | J44: =I44/2 -> 0.04 | AJ44: 社畜 （F类） | AK44: 0.16 | AL44: 休闲模块 | AM44: =Q109 -> 0.220858895 | AN44: =$AK$44*AM44 -> 0.0353374232
AL45: 更衣模块 | AM45: 0.193251533 | AN45: 0.03092024528
A46: 0.17 | B46: 健身达人 （C类） | C46: 平板塑形 | D46: 5 | E46: =F46/D46 -> 5 | F46: 25 | G46: 0.142045454 | I46: 运动健身模块 | J46: 影音模块 | K46: 休闲模块 | L46: 洗浴模块 | M46: 更衣模块 | O46: A | P46: 运动健身模块 | Q46: =I47+I49+I51+I53+I55 -> 0.530681817 | R46: 核心模块 | U46: 模块-模块关联 | V46: 运动健身模块 | W46: 洗浴模块 | X46: 更衣模块 | Y46: 休闲模块 | Z46: 影音模块 | AA46: 烹饪模块 | AB46: 睡眠模块 | AC46: 餐食模块 | AD46: 洗漱模块 | AL46: 影音模块 | AM46: 0.1779141095 | AN46: 0.02846625752
I47: =G46 -> 0.142045454 | J47: =I47/2 -> 0.071022727 | K47: =J47 -> 0.071022727 | L47: =K47 -> 0.071022727 | M47: =L47 -> 0.071022727 | O47: B | P47: 洗浴模块 | Q47: =L47+L49+J51+J53+J55+I57 -> 0.3953409085 | R47: 直接模块 | T47: 核心模块 | U47: 运动健身模块 | AL47: 工作学习模块 | AM47: 0.153374233 | AN47: 0.02453987728
C48: 大器械健身 | D48: 5 | E48: =F48/D48 -> 4 | F48: 20 | G48: 0.113636363 | I48: 运动健身模块 | J48: 影音模块 | K48: 休闲模块 | L48: 洗浴模块 | M48: 更衣模块 | O48: C | P48: 更衣模块 | Q48: =M47+M49+K51+K53+K55+I63 -> 0.3653409085 | T48: 直接模块 | U48: 洗浴模块 | V48: 5 | AL48: 运动健身模块 | AM48: 0.141104294 | AN48: 0.02257668704
I49: =G48 -> 0.113636363 | J49: =I49/2 -> 0.0568181815 | K49: =J49 -> 0.0568181815 | L49: =K49 -> 0.0568181815 | M49: =L49 -> 0.0568181815 | O49: D | P49: 休闲模块 | Q49: =K47+K49+J61 -> 0.1578409085 | U49: 更衣模块 | V49: 5 | W49: 4 | AL49: 餐食模块 | AM49: 0.1288343555 | AN49: 0.02061349688
C50: 跑步 | D50: 5 | E50: =F50/D50 -> 4.4 | F50: 22 | G50: 0.125 | I50: 运动健身模块 | J50: 洗浴模块 | K50: 更衣模块 | O50: E | P50: 影音模块 | Q50: =J47+J49 -> 0.1278409085 | R50: 间接模块 | U50: 休闲模块 | V50: 5 | W50: 4 | X50: 4 | AL50: 收纳模块 | AM50: 0.1196319015 | AN50: 0.01914110424
I51: =G50 -> 0.125 | J51: =I51/2 -> 0.0625 | K51: =J51 -> 0.0625 | O51: F | P51: 烹饪模块 | Q51: =I59 -> 0.11 | T51: 间接模块 | U51: 影音模块 | V51: 3 | W51: 2 | X51: 2 | Y51: 2 | AL51: 家政模块 | AM51: 0.116564417 | AN51: 0.01865030672
C52: 打篮球 | D52: 3 | E52: =F52/D52 -> 2.666666667 | F52: 8 | G52: 0.05 | I52: 运动健身模块 | J52: 洗浴模块 | K52: 更衣模块 | O52: G | P52: 睡眠模块 | Q52: =I65 -> 0.07 | U52: 烹饪模块 | V52: 3 | AN52: =SUM(AN4:AN51) -> 1.4210757
I53: =G52 -> 0.05 | J53: =I53/2 -> 0.025 | K53: =J53 -> 0.025 | O53: H | P53: 餐食模块 | Q53: =I61 -> 0.06 | U53: 睡眠模块 | V53: 3
C54: 游泳 | D54: 4.2 | E54: =F54/D54 -> 4.285714286 | F54: 18 | G54: 0.1 | I54: 运动健身模块 | J54: 洗浴模块 | K54: 更衣模块 | P54: 收纳模块 | Q54: =J63 -> 0.05 | R54: 只要A到H 多余去掉 | U54: 餐食模块 | V54: 3 | Y54: 3
I55: =G54 -> 0.1 | J55: =I55/2 -> 0.05 | K55: =J55 -> 0.05 | P55: 洗漱模块 | Q55: =K63 -> 0.05 | T55: + 必要 | U55: 洗漱模块 | V55: 1
C56: 淋浴 | D56: 4.6 | E56: =F56/D56 -> 5 | F56: 23 | G56: 0.13 | I56: 洗浴模块 | P56: A-H 总分合计 | Q56: =SUM(Q46:Q53) -> 1.817045451
I57: =G56 -> 0.13
C58: 做西餐 | D58: 4 | E58: =F58/D58 -> 4.75 | F58: 19 | G58: 0.11 | I58: 烹饪模块
I59: =G58 -> 0.11
C60: 就餐 | D60: 3 | E60: =F60/D60 -> 3.333333333 | F60: 10 | G60: 0.06 | I60: 餐食模块 | J60: 休闲模块
I61: =G60 -> 0.06 | J61: =I61/2 -> 0.03
C62: 仪容仪表 | D62: 4 | E62: =F62/D62 -> 4.5 | F62: 18 | G62: 0.1 | I62: 更衣模块 | J62: 收纳模块 | K62: 洗漱模块
I63: =G62 -> 0.1 | J63: =I63/2 -> 0.05 | K63: =J63 -> 0.05
C64: 睡觉 | D64: 3 | E64: =F64/D64 -> 4.333333333 | F64: 13 | G64: 0.07 | I64: 睡眠模块
I65: =G64 -> 0.07
A67: 0.18 | B67: 美妆达人 （D类） | C67: 仪容仪表 | D67: 5 | E67: =F67/D67 -> 5 | F67: 25 | G67: =F67/F86 -> 0.1420454545 | I67: 更衣模块 | J67: 收纳模块 | K67: 洗漱模块 | O67: B | P67: 收纳模块 | Q67: =J68+I70+I72+I78 -> 0.4403409091 | R67: 直接模块 | U67: 模块-模块关联 | V67: 收纳模块 | W67: 洗漱模块 | X67: 更衣模块 | Y67: 洗浴模块 | Z67: 运动健身模块 | AA67: 睡眠模块 | AB67: 影音模块 | AC67: 休闲模块
I68: =G67 -> 0.1420454545 | J68: =I68/2 -> 0.07102272727 | K68: =J68 -> 0.07102272727 | O68: C | P68: 洗漱模块 | Q68: =K68+K70+I76+J78 -> 0.2670454545 | T68: 直接模块 | U68: 收纳模块
C69: 美妆 | D69: 4 | E69: =F69/D69 -> 5 | F69: 20 | G69: =F69/F86 -> 0.1136363636 | I69: 收纳模块 | J69: 更衣模块 | K69: 洗漱模块 | O69: A | P69: 更衣模块 | Q69: =I68+J70+M82+K86 -> 0.2642045455 | R69: 核心模块 | U69: 洗漱模块 | V69: 4
I70: =G69 -> 0.1136363636 | J70: =I70/2 -> 0.05681818182 | K70: =J70/2 -> 0.02840909091 | O70: D | P70: 洗浴模块 | Q70: =I80+L82+J86 -> 0.1732954545 | R70: 直接模块 | T70: 核心模块 | U70: 更衣模块 | V70: 5 | W70: 5
C71: 收纳 | D71: 4.5 | E71: =F71/D71 -> 4.888888889 | F71: 22 | G71: =F71/F86 -> 0.125 | I71: 收纳模块 | O71: E | P71: 运动健身模块 | Q71: =I82+I86 -> 0.1306818182 | R71: 间接模块 | T71: 直接模块 | U71: 洗浴模块 | V71: 4 | W71: 4 | X71: 5
I72: =G71 -> 0.125 | O72: F | P72: 睡眠模块 | Q72: =I84 -> 0.1022727273 | T72: 间接模块 | U72: 运动健身模块 | X72: 3 | Y72: 3
C73: 直播 | D73: 3.2 | E73: =F73/D73 -> 2.5 | F73: 8 | G73: =F73/F86 -> 0.04545454545 | I73: 影音模块 | O73: G | P73: 影音模块 | Q73: =I74+J82 -> 0.07386363636 | U73: 睡眠模块 | X73: 3
I74: =G73 -> 0.04545454545 | O74: H | P74: 休闲模块 | Q74: =K82 -> 0.02840909091 | U74: 影音模块 | X74: 3 | Z74: 3
C75: 洗漱 | D75: 3.8 | E75: =F75/D75 -> 4.736842105 | F75: 18 | G75: =F75/F86 -> 0.1022727273 | I75: 洗漱模块 | P75: A-H 总分合计 | Q75: =SUM(Q67:Q74) -> 1.480113636 | R75: 只要A到H 多余去掉 | U75: 休闲模块 | X75: 3 | Y75: 1 | Z75: 3 | AB75: 1
I76: =G75 -> 0.1022727273
C77: 美容护肤 | D77: 4.7 | E77: =F77/D77 -> 4.893617021 | F77: 23 | G77: =F77/F86 -> 0.1306818182 | I77: 收纳模块 | J77: 洗漱模块
I78: =G77 -> 0.1306818182 | J78: =I78/2 -> 0.06534090909
C79: 泡澡 | D79: 4.2 | E79: =F79/D79 -> 4.523809524 | F79: 19 | G79: =F79/F86 -> 0.1079545455 | I79: 洗浴模块
I80: =G79 -> 0.1079545455
C81: 平板塑形 | D81: 2.7 | E81: =F81/D81 -> 3.703703704 | F81: 10 | G81: =F81/F86 -> 0.05681818182 | I81: 运动健身模块 | J81: 影音模块 | K81: 休闲模块 | L81: 洗浴模块 | M81: 更衣模块
I82: =G81 -> 0.05681818182 | J82: =I82/2 -> 0.02840909091 | K82: =J82 -> 0.02840909091 | L82: =K82 -> 0.02840909091 | M82: =L82 -> 0.02840909091
C83: 睡觉 | D83: 3.7 | E83: =F83/D83 -> 4.864864865 | F83: 18 | G83: =F83/F86 -> 0.1022727273 | I83: 睡眠模块
I84: =G83 -> 0.1022727273
C85: 跑步 | D85: 3 | E85: =F85/D85 -> 4.333333333 | F85: 13 | G85: =F85/F86 -> 0.07386363636 | I85: 运动健身模块 | J85: 洗浴模块 | K85: 更衣模块
F86: =SUM(F67:F85) -> 176 | I86: =G85 -> 0.07386363636 | J86: =I86/2 -> 0.03693181818 | K86: =J86 -> 0.03693181818
A88: 0.2 | B88: 御宅 （E类） | C88: 睡眠 | D88: 5 | E88: =F88/D88 -> 5 | F88: 25 | G88: 0.151515151 | I88: 睡眠模块 | O88: B | P88: 影音模块 | Q88: =I91+I93+I105 -> 0.29090909 | R88: 直接模块 | U88: 模块-模块关联 | V88: 影音模块 | W88: 休闲模块 | X88: 睡眠模块 | Y88: 园艺模块 | Z88: 展示模块 | AA88: 洗浴模块 | AB88: 餐食模块 | AC88: 宠物模块 | AD88: 洗漱模块
I89: =G88 -> 0.151515151 | O89: C | P89: 休闲模块 | Q89: =J91+J93+K95+J97+I103 -> 0.230303029 | T89: 直接模块 | U89: 影音模块
C90: 看影视 | D90: 4.8 | E90: =F90/D90 -> 4.166666667 | F90: 20 | G90: 0.121212121 | I90: 影音模块 | J90: 休闲模块 | O90: A | P90: 睡眠模块 | Q90: =I89+J103 -> 0.181818181 | R90: 核心模块 | U90: 休闲模块 | V90: 4
I91: =G90 -> 0.121212121 | J91: =I91/2 -> 0.0606060605 | O91: D | P91: 园艺模块 | Q91: =I107 -> 0.133333333 | R91: 直接模块 | T91: 核心模块 | U91: 睡眠模块 | V91: 5 | W91: 5
C92: 玩电脑游戏 | D92: 4.7 | E92: =F92/D92 -> 2.127659574 | F92: 10 | G92: 0.06060606 | I92: 影音模块 | J92: 休闲模块 | O92: E | P92: 展示模块 | Q92: =K105+J107 -> 0.121212121 | R92: 间接模块 | T92: 直接模块 | U92: 园艺模块 | V92: 4 | W92: 4 | X92: 5
I93: =G92 -> 0.06060606 | J93: =I93/2 -> 0.03030303 | O93: F | P93: 洗浴模块 | Q93: =I101 -> 0.115151515 | T93: 间接模块 | U93: 展示模块 | X93: 3
C94: 阅读 | D94: 3.1 | E94: =F94/D94 -> 2.580645161 | F94: 8 | G94: 0.048484848 | I94: 工作学习模块 | J94: 收纳模块 | K94: 休闲模块 | O94: G | P94: 餐食模块 | Q94: =I97 -> 0.109090909 | U94: 洗浴模块 | X94: 3 | Y94: 2
I95: =G94 -> 0.048484848 | J95: =I95/2 -> 0.024242424 | K95: =J95 -> 0.024242424 | O95: H | P95: 宠物模块 | Q95: =I99 -> 0.09090909 | U95: 餐食模块 | X95: 3 | Y95: 3
C96: 就餐 | D96: 4.2 | E96: =F96/D96 -> 4.285714286 | F96: 18 | G96: 0.109090909 | I96: 餐食模块 | J96: 休闲模块 | P96: 收纳模块 | Q96: =J95+J105 -> 0.0787878785 | R96: 只要A到H 多余去掉 | U96: 宠物模块 | X96: 3 | Y96: 3 | AA96: 3
I97: =G96 -> 0.109090909 | J97: =I97/2 -> 0.0545454545 | P97: 工作学习模块 | Q97: =I95 -> 0.048484848 | T97: + 必要 | U97: 洗漱模块 | X97: 1
C98: 养猫 | D98: 4.9 | E98: =F98/D98 -> 3.06122449 | F98: 15 | G98: 0.09090909 | I98: 宠物模块 | P98: A-H 总分合计 | Q98: =SUM(Q88:Q95) -> 1.272727268
I99: =G98 -> 0.09090909
C100: 泡澡 | D100: 4.6 | E100: =F100/D100 -> 4.130434783 | F100: 19 | G100: 0.115151515 | I100: 洗浴模块
I101: =G100 -> 0.115151515
C102: 小憩 | D102: 3.1 | E102: =F102/D102 -> 3.225806452 | F102: 10 | G102: 0.06060606 | I102: 休闲模块 | J102: 睡眠模块
I103: =G102 -> 0.06060606 | J103: =I103/2 -> 0.03030303
C104: 追星 | D104: 4.1 | E104: =F104/D104 -> 4.390243902 | F104: 18 | G104: 0.109090909 | I104: 影音模块 | J104: 收纳模块 | K104: 展示模块
I105: =G104 -> 0.109090909 | J105: =I105/2 -> 0.0545454545 | K105: =J105 -> 0.0545454545
C106: 种花 | D106: 3.4 | E106: =F106/D106 -> 6.470588235 | F106: 22 | G106: 0.133333333 | I106: 园艺模块 | J106: 展示模块
I107: =G106 -> 0.133333333 | J107: =I107/2 -> 0.0666666665
A109: 0.16 | B109: 社畜 （F类） | C109: 工作学习 | D109: 5 | E109: =F109/D109 -> 5 | F109: 25 | G109: 0.153374233 | I109: 工作学习模块 | O109: B | P109: 休闲模块 | Q109: =I114+J118+J124 -> 0.220858895 | R109: 直接模块 | U109: 模块-模块关联 | V109: 休闲模块 | W109: 更衣模块 | X109: 影音模块 | Y109: 工作学习模块 | Z109: 运动健身模块 | AA109: 餐食模块 | AB109: 收纳模块 | AC109: 家政模块 | AD109: 睡眠模块 | AE109: 洗漱模块 | AF109: 洗浴模块
I110: =G109 -> 0.153374233 | O110: C | P110: 更衣模块 | Q110: =I112+K120 -> 0.193251533 | T110: 直接模块 | U110: 休闲模块
C111: 仪容仪表 | D111: 4.7 | E111: =F111/D111 -> 4.255319149 | F111: 20 | G111: 0.122699386 | I111: 更衣模块 | J111: 收纳模块 | K111: 洗漱模块 | O111: D | P111: 影音模块 | Q111: =M114+I118 -> 0.1779141095 | U111: 更衣模块 | V111: 4
I112: =G111 -> 0.122699386 | J112: =I112/2 -> 0.061349693 | K112: =J112 -> 0.061349693 | O112: A | P112: 工作学习模块 | Q112: =I110 -> 0.153374233 | R112: 核心模块 | U112: 影音模块 | V112: 4 | W112: 4
C113: 微聚会 | D113: 4.9 | E113: =F113/D113 -> 4.489795918 | F113: 22 | G113: 0.134969325 | I113: 休闲模块 | J113: 餐食模块 | K113: 烹饪模块 | L113: 酒水茶模块 | M113: 影音模块 | O113: E | P113: 运动健身模块 | Q113: =I120 -> 0.141104294 | R113: 间接模块 | T113: 核心模块 | U113: 工作学习模块 | V113: 5 | W113: 5 | X113: 5
I114: =G113 -> 0.134969325 | J114: =I114/2 -> 0.0674846625 | K114: =J114 -> 0.0674846625 | L114: =K114 -> 0.0674846625 | M114: =L114 -> 0.0674846625 | O114: F | P114: 餐食模块 | Q114: =J114+I124 -> 0.1288343555 | T114: 间接模块 | U114: 运动健身模块 | W114: 3 | Y114: 3
C115: 喝咖啡 | D115: 3.2 | E115: =F115/D115 -> 2.5 | F115: 8 | G115: 0.049079754 | I115: 酒水茶模块 | O115: G | P115: 收纳模块 | Q115: =J112+J122 -> 0.1196319015 | U115: 餐食模块 | V115: 3 | X115: 1 | Y115: 3
I116: =G115 -> 0.049079754 | O116: H | P116: 家政模块 | Q116: =I122 -> 0.116564417 | U116: 收纳模块 | W116: 3 | Y116: 3
C117: 看影视 | D117: 4.5 | E117: =F117/D117 -> 4 | F117: 18 | G117: 0.110429447 | I117: 影音模块 | J117: 休闲模块 | P117: 酒水茶模块 | Q117: =L120+I122 -> 0.116564417 | R117: 只要A到H 多余去掉 | U117: 家政模块 | Y117: 3 | AB117: 3
I118: =G117 -> 0.110429447 | J118: =I118/2 -> 0.0552147235 | P118: 宠物模块 | Q118: =I126 -> 0.110429447 | T118: + 必要 | U118: 睡眠模块 | Y118: 1
C119: 跑步 | D119: 4.3 | E119: =F119/D119 -> 5.348837209 | F119: 23 | G119: 0.141104294 | I119: 运动健身模块 | J119: 洗浴模块 | K119: 更衣模块 | P119: 洗浴模块 | Q119: =J120 -> 0.070552147 | U119: 洗漱模块 | Y119: 1
I120: =G119 -> 0.141104294 | J120: =I120/2 -> 0.070552147 | K120: =J120 -> 0.070552147 | P120: 烹饪模块 | Q120: =K114 -> 0.0674846625 | U120: 洗浴模块 | Y120: 1
C121: 洗干熨衣 | D121: 3.8 | E121: =F121/D121 -> 5 | F121: 19 | G121: 0.116564417 | I121: 家政模块 | J121: 收纳模块 | P121: 洗漱模块 | Q121: =K112 -> 0.061349693
I122: =G121 -> 0.116564417 | J122: =I122/2 -> 0.0582822085 | P122: A-H 总分合计 | Q122: =SUM(Q109:Q116) -> 1.251533739
C123: 就餐 | D123: 3.2 | E123: =F123/D123 -> 3.125 | F123: 10 | G123: 0.061349693 | I123: 餐食模块 | J123: 休闲模块
I124: =G123 -> 0.061349693 | J124: =I124/2 -> 0.0306748465
C125: 养猫 | D125: 4.2 | E125: =F125/D125 -> 4.285714286 | F125: 18 | G125: 0.110429447 | I125: 宠物模块
I126: =G125 -> 0.110429447

Sheet 例外情况
A1: 排名 | B1: 模块标签 | C1: 总分 | D1: 模块类型
A2: A | B2: 影音模块 | C2: 73.5 | D2: 核心模块 | F2: 功能模块ID | G2: 功能模块标签 | H2: 模块默认推送次序
A3: B | B3: 休闲模块 | C3: 51 | D3: 直接模块 | F3: 1 | G3: 收纳模块 | H3: 7
A4: C | B4: 酒水茶模块 | C4: 20.5 | F4: 2 | G4: 更衣模块 | H4: 6
A5: D | B5: 工作学习模块 | C5: 20 | F5: 3 | G5: 展示模块 | H5: 15
A6: E | B6: 收纳模块 | C6: 20 | D6: 间接模块 | F6: 4 | G6: 工作学习模块 | H6: 11
A7: F | B7: 餐食模块 | C7: 7.5 | F7: 5 | G7: 休闲模块 | H7: 5
A8: G | B8: 睡眠模块 | D8: 若不满8个模块，则去重后，按照默认推送次序 自动补充模块（参考右侧表格） | F8: 6 | G8: 睡眠模块 | H8: 1
A9: H | B9: 洗漱模块 | F9: 7 | G9: 影音模块 | H9: 10
F10: 8 | G10: 宠物模块 | H10: 17
F11: 9 | G11: 运动模块 | H11: 12
F12: 10 | G12: 健身模块 | H12: 13
F13: 11 | G13: 洗漱模块 | H13: 2
F14: 12 | G14: 洗浴模块 | H14: 3
F15: 13 | G15: 餐食模块 | H15: 4
F16: 14 | G16: 烹饪模块 | H16: 8
F17: 15 | G17: 酒水茶模块 | H17: 14
F18: 16 | G18: 家政模块 | H18: 9
F19: 17 | G19: 园艺模块 | H19: 16
F20: 18 | G20: 手工模块 | H20: 18
